Workbook

Sheet Introduction
B3: =Benchmarking!C1&" Data" -> 2024-25 Data | E3: ="Kent LA Schools' Benchmarking Data "&Benchmarking!C1 -> Kent LA Schools' Benchmarking Data 2024-25
E5: THIS BENCHMARKING SHEET IS FOR SECONDARY SCHOOLS ONLY
E7: ="The Benchmarking spreadsheet shows the income and expenditure information for the "&Benchmarking!C1&" financial year at subjective account level i.e. CFR codes. It shows all revenue income and expenditure including standards funds." -> The Benchmarking spreadsheet shows the income and expenditure information for the 2024-25 financial year at subjective account level i.e. CFR codes. It shows all revenue income and expenditure including standards funds.
E9: Capital income and expenditure is excluded.
E11: Enter your DFE number in the green shaded box, you can enter the last four digits or use the drop down box.
E13: The green drop down boxes allow you to select up to three Schools to benchmark against, the grey area allows you to benchmark against the average of the Schools you selected
E16: The sheet is formatted to print on one page.
E18: CFR = Consistent Financial Reporting

Sheet Benchmarking
B1: Subjective Analysis of | C1: 2024-25 | D1: Income and Expenditure Compared to Group and Phase Averages
E3: 11-16 | F3: Post 16 | H3: Select a school to Benchmark against | L3: Select a school to Benchmark against | P3: Select a school to Benchmark against
B4: Enter last 4 digits of your DfE No. | D4: Pupil Roll | E4: =IF(ISERROR(VLOOKUP(C4,'2024-25 Data'!$A$3:$C$19,3,0)),"",VLOOKUP(C4,'2024-25 Data'!$A$3:$C$19,3,0)+VLOOKUP(C4,'2024-25 Data'!$A$3:$E$19,5,0)) ->  | F4: =IF(ISERROR(VLOOKUP(C4,'2024-25 Data'!$A$3:$D$19,4,0)),"",VLOOKUP(C4,'2024-25 Data'!$A$3:$D$19,4,0)) -> 
I5: 11-16 | J5: Post 16 | M5: 11-16 | N5: Post 16 | Q5: 11-16 | R5: Post 16
B6: =B1&C1&D1 -> Subjective Analysis of 2024-25 Income and Expenditure Compared to Group and Phase Averages | H6: =IF(ISERROR(SUMIF(schools,H4,dfenums)),"",SUMIF(schools,H4,dfenums)) -> 0 | I6: =IF(ISERROR(VLOOKUP(H6,'2024-25 Data'!$A$3:$C$19,3,0)),"",VLOOKUP(H6,'2024-25 Data'!$A$3:$C$19,3,0)) ->  | J6: =IF(ISERROR(VLOOKUP(H6,'2024-25 Data'!$A$3:$D$19,4,0)),"",VLOOKUP(H6,'2024-25 Data'!$A$3:$D$19,4,0)) ->  | L6: =IF(ISERROR(SUMIF(schools,L4,dfenums)),"",SUMIF(schools,L4,dfenums)) -> 0 | M6: =IF(ISERROR(VLOOKUP(L6,'2024-25 Data'!$A$3:$C$19,3,0)),"",VLOOKUP(L6,'2024-25 Data'!$A$3:$C$19,3,0)) ->  | N6: =IF(ISERROR(VLOOKUP(L6,'2024-25 Data'!$A$3:$D$19,4,0)),"",VLOOKUP(L6,'2024-25 Data'!$A$3:$D$19,4,0)) ->  | P6: =IF(ISERROR(SUMIF(schools,P4,dfenums)),"",SUMIF(schools,P4,dfenums)) -> 0 | Q6: =IF(ISERROR(VLOOKUP(P6,'2024-25 Data'!$A$3:$C$19,3,0)),"",VLOOKUP(P6,'2024-25 Data'!$A$3:$C$19,3,0)) ->  | R6: =IF(ISERROR(VLOOKUP(P6,'2024-25 Data'!$A$3:$D$19,4,0)),"",VLOOKUP(P6,'2024-25 Data'!$A$3:$D$19,4,0)) -> 
H7: =IF(H4="","",IF(C4=H6,"This is your school","")) ->  | L7: =IF(L4="","",IF(L6=H6,"You have already selected this school",IF(L6=C4,"This is your school",""))) ->  | P7: =IF(P4="","",IF(OR(P6=L6,P6=H6),"You have already selected this school",IF(P6=C4,"This is your school",""))) ->  | T7: All Kent Secondary Schools
B9: =IF(C4="","",VLOOKUP($C$4,'2024-25 Data'!A3:B279,2,0)) ->  | D9: total Exp. / Inc. | E9: amount per Pupil | F9: % of total Exp. | H9: total Exp. / Inc. | I9: amount per Pupil | J9: % of total Exp. | L9: total Exp. / Inc. | M9: amount per Pupil | N9: % of total Exp. | P9: total Exp. / Inc. | Q9: amount per Pupil | R9: % of total Exp. | T9: amount per Pupil | U9: % of total Exp. | V9: % of Exp / total inc.
D10: £ | E10: £ | F10: % | H10: £ | I10: £ | J10: % | L10: £ | M10: £ | N10: % | P10: £ | Q10: £ | R10: % | T10: £ | U10: % | V10: %
B12: EXPENDITURE
B13: Teaching staff | C13: E01 | D13: =IF(ISERROR(INDEX('2024-25 Data'!$B$3:$CA$19,MATCH($C$4,dfenums,0),MATCH($C13,'2024-25 Data'!$B$2:$CA$2,0))),"",INDEX('2024-25 Data'!$B$3:$CA$19,MATCH($C$4,dfenums,0),MATCH($C13,'2024-25 Data'!$B$2:$CA$2,0))) ->  | E13: =IF($C$4>0,D13/($E$4+$F$4),"") ->  | F13: =IF($C$4>0,D13/$D$52,"") ->  | H13: =IF(ISERROR(INDEX('2024-25 Data'!$B$3:$CA$19,MATCH($H$6,dfenums,0),MATCH($C13,'2024-25 Data'!$B$2:$CA$2,0))),"",INDEX('2024-25 Data'!$B$3:$CA$19,MATCH($H$6,dfenums,0),MATCH($C13,'2024-25 Data'!$B$2:$CA$2,0))) ->  | I13: =IF($H$6>0,H13/($I$6+$J$6),"") ->  | J13: =IF($H$6>0,H13/$H$52,"") ->  | L13: =IF(ISERROR(INDEX('2024-25 Data'!$B$3:$CA$19,MATCH($L$6,dfenums,0),MATCH($C13,'2024-25 Data'!$B$2:$CA$2,0))),"",INDEX('2024-25 Data'!$B$3:$CA$19,MATCH($L$6,dfenums,0),MATCH($C13,'2024-25 Data'!$B$2:$CA$2,0))) ->  | M13: =IF($L$6>0,L13/($M$6+$N$6),"") ->  | N13: =IF($L$6>0,L13/$L$52,"") ->  | P13: =IF(ISERROR(INDEX('2024-25 Data'!$B$3:$CA$19,MATCH($P$6,dfenums,0),MATCH($C13,'2024-25 Data'!$B$2:$CA$2,0))),"",INDEX('2024-25 Data'!$B$3:$CA$19,MATCH($P$6,dfenums,0),MATCH($C13,'2024-25 Data'!$B$2:$CA$2,0))) ->  | Q13: =IF($P$6>0,P13/($Q$6+$R$6),"") ->  | R13: =IF($P$6>0,P13/$P$52,"") ->  | T13: =IF(ISERROR(SUM('2024-25 Data'!F$3:F$19)/SUM('2024-25 Data'!$C$3:$D$19)),"",SUM('2024-25 Data'!F$3:F$19)/SUM('2024-25 Data'!$C$3:$D$19)) -> 4304.492897 | U13: =IF(ISERROR(T13/$T$52),"",T13/$T$52) -> 0.5732296064 | V13: =IF(ISERROR(T13/-$T$78),"",T13/-$T$78) -> 0.00445610941
B14: Supply teaching staff | C14: E02 | D14: =IF(ISERROR(INDEX('2024-25 Data'!$B$3:$CA$19,MATCH($C$4,dfenums,0),MATCH($C14,'2024-25 Data'!$B$2:$CA$2,0))),"",INDEX('2024-25 Data'!$B$3:$CA$19,MATCH($C$4,dfenums,0),MATCH($C14,'2024-25 Data'!$B$2:$CA$2,0))) ->  | H14: =IF(ISERROR(INDEX('2024-25 Data'!$B$3:$CA$19,MATCH($H$6,dfenums,0),MATCH($C14,'2024-25 Data'!$B$2:$CA$2,0))),"",INDEX('2024-25 Data'!$B$3:$CA$19,MATCH($H$6,dfenums,0),MATCH($C14,'2024-25 Data'!$B$2:$CA$2,0))) ->  | I14: =IF($H$6>0,H14/($I$6+$J$6),"") ->  | L14: =IF(ISERROR(INDEX('2024-25 Data'!$B$3:$CA$19,MATCH($L$6,dfenums,0),MATCH($C14,'2024-25 Data'!$B$2:$CA$2,0))),"",INDEX('2024-25 Data'!$B$3:$CA$19,MATCH($L$6,dfenums,0),MATCH($C14,'2024-25 Data'!$B$2:$CA$2,0))) ->  | M14: =IF($L$6>0,L14/($M$6+$N$6),"") ->  | P14: =IF(ISERROR(INDEX('2024-25 Data'!$B$3:$CA$19,MATCH($P$6,dfenums,0),MATCH($C14,'2024-25 Data'!$B$2:$CA$2,0))),"",INDEX('2024-25 Data'!$B$3:$CA$19,MATCH($P$6,dfenums,0),MATCH($C14,'2024-25 Data'!$B$2:$CA$2,0))) ->  | Q14: =IF($P$6>0,P14/($Q$6+$R$6),"") ->  | T14: =IF(ISERROR(SUM('2024-25 Data'!G$3:G$19)/SUM('2024-25 Data'!$C$3:$D$19)),"",SUM('2024-25 Data'!G$3:G$19)/SUM('2024-25 Data'!$C$3:$D$19)) -> 4.173974146 | U14: 0.0005558484156 | V14: 4.320993417e-06
B15: Education support staff | C15: E03 | D15: =IF(ISERROR(INDEX('2024-25 Data'!$B$3:$CA$19,MATCH($C$4,dfenums,0),MATCH($C15,'2024-25 Data'!$B$2:$CA$2,0))),"",INDEX('2024-25 Data'!$B$3:$CA$19,MATCH($C$4,dfenums,0),MATCH($C15,'2024-25 Data'!$B$2:$CA$2,0))) ->  | H15: =IF(ISERROR(INDEX('2024-25 Data'!$B$3:$CA$19,MATCH($H$6,dfenums,0),MATCH($C15,'2024-25 Data'!$B$2:$CA$2,0))),"",INDEX('2024-25 Data'!$B$3:$CA$19,MATCH($H$6,dfenums,0),MATCH($C15,'2024-25 Data'!$B$2:$CA$2,0))) ->  | L15: =IF(ISERROR(INDEX('2024-25 Data'!$B$3:$CA$19,MATCH($L$6,dfenums,0),MATCH($C15,'2024-25 Data'!$B$2:$CA$2,0))),"",INDEX('2024-25 Data'!$B$3:$CA$19,MATCH($L$6,dfenums,0),MATCH($C15,'2024-25 Data'!$B$2:$CA$2,0))) ->  | P15: =IF(ISERROR(INDEX('2024-25 Data'!$B$3:$CA$19,MATCH($P$6,dfenums,0),MATCH($C15,'2024-25 Data'!$B$2:$CA$2,0))),"",INDEX('2024-25 Data'!$B$3:$CA$19,MATCH($P$6,dfenums,0),MATCH($C15,'2024-25 Data'!$B$2:$CA$2,0))) ->  | T15: =IF(ISERROR(SUM('2024-25 Data'!H$3:H$19)/SUM('2024-25 Data'!$C$3:$D$19)),"",SUM('2024-25 Data'!H$3:H$19)/SUM('2024-25 Data'!$C$3:$D$19)) -> 810.9419799 | U15: 0.1079931976 | V15: 0.0008395056687
B16: Premises staff | C16: E04 | D16: =IF(ISERROR(INDEX('2024-25 Data'!$B$3:$CA$19,MATCH($C$4,dfenums,0),MATCH($C16,'2024-25 Data'!$B$2:$CA$2,0))),"",INDEX('2024-25 Data'!$B$3:$CA$19,MATCH($C$4,dfenums,0),MATCH($C16,'2024-25 Data'!$B$2:$CA$2,0))) ->  | H16: =IF(ISERROR(INDEX('2024-25 Data'!$B$3:$CA$19,MATCH($H$6,dfenums,0),MATCH($C16,'2024-25 Data'!$B$2:$CA$2,0))),"",INDEX('2024-25 Data'!$B$3:$CA$19,MATCH($H$6,dfenums,0),MATCH($C16,'2024-25 Data'!$B$2:$CA$2,0))) ->  | L16: =IF(ISERROR(INDEX('2024-25 Data'!$B$3:$CA$19,MATCH($L$6,dfenums,0),MATCH($C16,'2024-25 Data'!$B$2:$CA$2,0))),"",INDEX('2024-25 Data'!$B$3:$CA$19,MATCH($L$6,dfenums,0),MATCH($C16,'2024-25 Data'!$B$2:$CA$2,0))) ->  | P16: =IF(ISERROR(INDEX('2024-25 Data'!$B$3:$CA$19,MATCH($P$6,dfenums,0),MATCH($C16,'2024-25 Data'!$B$2:$CA$2,0))),"",INDEX('2024-25 Data'!$B$3:$CA$19,MATCH($P$6,dfenums,0),MATCH($C16,'2024-25 Data'!$B$2:$CA$2,0))) ->  | T16: =IF(ISERROR(SUM('2024-25 Data'!I$3:I$19)/SUM('2024-25 Data'!$C$3:$D$19)),"",SUM('2024-25 Data'!I$3:I$19)/SUM('2024-25 Data'!$C$3:$D$19)) -> 159.4487303 | U16: 0.02123379806 | V16: 0.0001650649692
B17: Administrative and clerical staff | C17: E05 | D17: =IF(ISERROR(INDEX('2024-25 Data'!$B$3:$CA$19,MATCH($C$4,dfenums,0),MATCH($C17,'2024-25 Data'!$B$2:$CA$2,0))),"",INDEX('2024-25 Data'!$B$3:$CA$19,MATCH($C$4,dfenums,0),MATCH($C17,'2024-25 Data'!$B$2:$CA$2,0))) ->  | H17: =IF(ISERROR(INDEX('2024-25 Data'!$B$3:$CA$19,MATCH($H$6,dfenums,0),MATCH($C17,'2024-25 Data'!$B$2:$CA$2,0))),"",INDEX('2024-25 Data'!$B$3:$CA$19,MATCH($H$6,dfenums,0),MATCH($C17,'2024-25 Data'!$B$2:$CA$2,0))) ->  | L17: =IF(ISERROR(INDEX('2024-25 Data'!$B$3:$CA$19,MATCH($L$6,dfenums,0),MATCH($C17,'2024-25 Data'!$B$2:$CA$2,0))),"",INDEX('2024-25 Data'!$B$3:$CA$19,MATCH($L$6,dfenums,0),MATCH($C17,'2024-25 Data'!$B$2:$CA$2,0))) ->  | P17: =IF(ISERROR(INDEX('2024-25 Data'!$B$3:$CA$19,MATCH($P$6,dfenums,0),MATCH($C17,'2024-25 Data'!$B$2:$CA$2,0))),"",INDEX('2024-25 Data'!$B$3:$CA$19,MATCH($P$6,dfenums,0),MATCH($C17,'2024-25 Data'!$B$2:$CA$2,0))) ->  | T17: =IF(ISERROR(SUM('2024-25 Data'!J$3:J$19)/SUM('2024-25 Data'!$C$3:$D$19)),"",SUM('2024-25 Data'!J$3:J$19)/SUM('2024-25 Data'!$C$3:$D$19)) -> 393.8559248 | U17: 0.0524498198 | V17: 0.0004077286535
B18: Catering staff | C18: E06 | D18: =IF(ISERROR(INDEX('2024-25 Data'!$B$3:$CA$19,MATCH($C$4,dfenums,0),MATCH($C18,'2024-25 Data'!$B$2:$CA$2,0))),"",INDEX('2024-25 Data'!$B$3:$CA$19,MATCH($C$4,dfenums,0),MATCH($C18,'2024-25 Data'!$B$2:$CA$2,0))) ->  | H18: =IF(ISERROR(INDEX('2024-25 Data'!$B$3:$CA$19,MATCH($H$6,dfenums,0),MATCH($C18,'2024-25 Data'!$B$2:$CA$2,0))),"",INDEX('2024-25 Data'!$B$3:$CA$19,MATCH($H$6,dfenums,0),MATCH($C18,'2024-25 Data'!$B$2:$CA$2,0))) ->  | L18: =IF(ISERROR(INDEX('2024-25 Data'!$B$3:$CA$19,MATCH($L$6,dfenums,0),MATCH($C18,'2024-25 Data'!$B$2:$CA$2,0))),"",INDEX('2024-25 Data'!$B$3:$CA$19,MATCH($L$6,dfenums,0),MATCH($C18,'2024-25 Data'!$B$2:$CA$2,0))) ->  | P18: =IF(ISERROR(INDEX('2024-25 Data'!$B$3:$CA$19,MATCH($P$6,dfenums,0),MATCH($C18,'2024-25 Data'!$B$2:$CA$2,0))),"",INDEX('2024-25 Data'!$B$3:$CA$19,MATCH($P$6,dfenums,0),MATCH($C18,'2024-25 Data'!$B$2:$CA$2,0))) ->  | T18: =IF(ISERROR(SUM('2024-25 Data'!K$3:K$19)/SUM('2024-25 Data'!$C$3:$D$19)),"",SUM('2024-25 Data'!K$3:K$19)/SUM('2024-25 Data'!$C$3:$D$19)) -> 40.89961399 | U18: 0.005446604325 | V18: 4.234021501e-05
B19: Cost of other staff | C19: E07 | D19: =IF(ISERROR(INDEX('2024-25 Data'!$B$3:$CA$19,MATCH($C$4,dfenums,0),MATCH($C19,'2024-25 Data'!$B$2:$CA$2,0))),"",INDEX('2024-25 Data'!$B$3:$CA$19,MATCH($C$4,dfenums,0),MATCH($C19,'2024-25 Data'!$B$2:$CA$2,0))) ->  | H19: =IF(ISERROR(INDEX('2024-25 Data'!$B$3:$CA$19,MATCH($H$6,dfenums,0),MATCH($C19,'2024-25 Data'!$B$2:$CA$2,0))),"",INDEX('2024-25 Data'!$B$3:$CA$19,MATCH($H$6,dfenums,0),MATCH($C19,'2024-25 Data'!$B$2:$CA$2,0))) ->  | L19: =IF(ISERROR(INDEX('2024-25 Data'!$B$3:$CA$19,MATCH($L$6,dfenums,0),MATCH($C19,'2024-25 Data'!$B$2:$CA$2,0))),"",INDEX('2024-25 Data'!$B$3:$CA$19,MATCH($L$6,dfenums,0),MATCH($C19,'2024-25 Data'!$B$2:$CA$2,0))) ->  | P19: =IF(ISERROR(INDEX('2024-25 Data'!$B$3:$CA$19,MATCH($P$6,dfenums,0),MATCH($C19,'2024-25 Data'!$B$2:$CA$2,0))),"",INDEX('2024-25 Data'!$B$3:$CA$19,MATCH($P$6,dfenums,0),MATCH($C19,'2024-25 Data'!$B$2:$CA$2,0))) ->  | T19: =IF(ISERROR(SUM('2024-25 Data'!L$3:L$19)/SUM('2024-25 Data'!$C$3:$D$19)),"",SUM('2024-25 Data'!L$3:L$19)/SUM('2024-25 Data'!$C$3:$D$19)) -> 27.80087916 | U19: 0.003702244934 | V19: 2.878010539e-05
B20: Indirect employee expenses | C20: E08 | D20: =IF(ISERROR(INDEX('2024-25 Data'!$B$3:$CA$19,MATCH($C$4,dfenums,0),MATCH($C20,'2024-25 Data'!$B$2:$CA$2,0))),"",INDEX('2024-25 Data'!$B$3:$CA$19,MATCH($C$4,dfenums,0),MATCH($C20,'2024-25 Data'!$B$2:$CA$2,0))) ->  | H20: =IF(ISERROR(INDEX('2024-25 Data'!$B$3:$CA$19,MATCH($H$6,dfenums,0),MATCH($C20,'2024-25 Data'!$B$2:$CA$2,0))),"",INDEX('2024-25 Data'!$B$3:$CA$19,MATCH($H$6,dfenums,0),MATCH($C20,'2024-25 Data'!$B$2:$CA$2,0))) ->  | L20: =IF(ISERROR(INDEX('2024-25 Data'!$B$3:$CA$19,MATCH($L$6,dfenums,0),MATCH($C20,'2024-25 Data'!$B$2:$CA$2,0))),"",INDEX('2024-25 Data'!$B$3:$CA$19,MATCH($L$6,dfenums,0),MATCH($C20,'2024-25 Data'!$B$2:$CA$2,0))) ->  | P20: =IF(ISERROR(INDEX('2024-25 Data'!$B$3:$CA$19,MATCH($P$6,dfenums,0),MATCH($C20,'2024-25 Data'!$B$2:$CA$2,0))),"",INDEX('2024-25 Data'!$B$3:$CA$19,MATCH($P$6,dfenums,0),MATCH($C20,'2024-25 Data'!$B$2:$CA$2,0))) ->  | T20: =IF(ISERROR(SUM('2024-25 Data'!M$3:M$19)/SUM('2024-25 Data'!$C$3:$D$19)),"",SUM('2024-25 Data'!M$3:M$19)/SUM('2024-25 Data'!$C$3:$D$19)) -> 35.01557155 | U20: 0.004663026001 | V20: 3.624891982e-05
B21: Development and training | C21: E09 | D21: =IF(ISERROR(INDEX('2024-25 Data'!$B$3:$CA$19,MATCH($C$4,dfenums,0),MATCH($C21,'2024-25 Data'!$B$2:$CA$2,0))),"",INDEX('2024-25 Data'!$B$3:$CA$19,MATCH($C$4,dfenums,0),MATCH($C21,'2024-25 Data'!$B$2:$CA$2,0))) ->  | H21: =IF(ISERROR(INDEX('2024-25 Data'!$B$3:$CA$19,MATCH($H$6,dfenums,0),MATCH($C21,'2024-25 Data'!$B$2:$CA$2,0))),"",INDEX('2024-25 Data'!$B$3:$CA$19,MATCH($H$6,dfenums,0),MATCH($C21,'2024-25 Data'!$B$2:$CA$2,0))) ->  | L21: =IF(ISERROR(INDEX('2024-25 Data'!$B$3:$CA$19,MATCH($L$6,dfenums,0),MATCH($C21,'2024-25 Data'!$B$2:$CA$2,0))),"",INDEX('2024-25 Data'!$B$3:$CA$19,MATCH($L$6,dfenums,0),MATCH($C21,'2024-25 Data'!$B$2:$CA$2,0))) ->  | P21: =IF(ISERROR(INDEX('2024-25 Data'!$B$3:$CA$19,MATCH($P$6,dfenums,0),MATCH($C21,'2024-25 Data'!$B$2:$CA$2,0))),"",INDEX('2024-25 Data'!$B$3:$CA$19,MATCH($P$6,dfenums,0),MATCH($C21,'2024-25 Data'!$B$2:$CA$2,0))) ->  | T21: =IF(ISERROR(SUM('2024-25 Data'!N$3:N$19)/SUM('2024-25 Data'!$C$3:$D$19)),"",SUM('2024-25 Data'!N$3:N$19)/SUM('2024-25 Data'!$C$3:$D$19)) -> 21.07529088 | U21: 0.002806597894 | V21: 2.181762272e-05
B22: Supply teacher insurance | C22: E10 | D22: =IF(ISERROR(INDEX('2024-25 Data'!$B$3:$CA$19,MATCH($C$4,dfenums,0),MATCH($C22,'2024-25 Data'!$B$2:$CA$2,0))),"",INDEX('2024-25 Data'!$B$3:$CA$19,MATCH($C$4,dfenums,0),MATCH($C22,'2024-25 Data'!$B$2:$CA$2,0))) ->  | H22: =IF(ISERROR(INDEX('2024-25 Data'!$B$3:$CA$19,MATCH($H$6,dfenums,0),MATCH($C22,'2024-25 Data'!$B$2:$CA$2,0))),"",INDEX('2024-25 Data'!$B$3:$CA$19,MATCH($H$6,dfenums,0),MATCH($C22,'2024-25 Data'!$B$2:$CA$2,0))) ->  | L22: =IF(ISERROR(INDEX('2024-25 Data'!$B$3:$CA$19,MATCH($L$6,dfenums,0),MATCH($C22,'2024-25 Data'!$B$2:$CA$2,0))),"",INDEX('2024-25 Data'!$B$3:$CA$19,MATCH($L$6,dfenums,0),MATCH($C22,'2024-25 Data'!$B$2:$CA$2,0))) ->  | P22: =IF(ISERROR(INDEX('2024-25 Data'!$B$3:$CA$19,MATCH($P$6,dfenums,0),MATCH($C22,'2024-25 Data'!$B$2:$CA$2,0))),"",INDEX('2024-25 Data'!$B$3:$CA$19,MATCH($P$6,dfenums,0),MATCH($C22,'2024-25 Data'!$B$2:$CA$2,0))) ->  | T22: =IF(ISERROR(SUM('2024-25 Data'!O$3:O$19)/SUM('2024-25 Data'!$C$3:$D$19)),"",SUM('2024-25 Data'!O$3:O$19)/SUM('2024-25 Data'!$C$3:$D$19)) -> 1.568267113 | U22: 0.0002088462361 | V22: 1.623505952e-06
B23: Staff related insurance | C23: E11 | D23: =IF(ISERROR(INDEX('2024-25 Data'!$B$3:$CA$19,MATCH($C$4,dfenums,0),MATCH($C23,'2024-25 Data'!$B$2:$CA$2,0))),"",INDEX('2024-25 Data'!$B$3:$CA$19,MATCH($C$4,dfenums,0),MATCH($C23,'2024-25 Data'!$B$2:$CA$2,0))) ->  | H23: =IF(ISERROR(INDEX('2024-25 Data'!$B$3:$CA$19,MATCH($H$6,dfenums,0),MATCH($C23,'2024-25 Data'!$B$2:$CA$2,0))),"",INDEX('2024-25 Data'!$B$3:$CA$19,MATCH($H$6,dfenums,0),MATCH($C23,'2024-25 Data'!$B$2:$CA$2,0))) ->  | L23: =IF(ISERROR(INDEX('2024-25 Data'!$B$3:$CA$19,MATCH($L$6,dfenums,0),MATCH($C23,'2024-25 Data'!$B$2:$CA$2,0))),"",INDEX('2024-25 Data'!$B$3:$CA$19,MATCH($L$6,dfenums,0),MATCH($C23,'2024-25 Data'!$B$2:$CA$2,0))) ->  | P23: =IF(ISERROR(INDEX('2024-25 Data'!$B$3:$CA$19,MATCH($P$6,dfenums,0),MATCH($C23,'2024-25 Data'!$B$2:$CA$2,0))),"",INDEX('2024-25 Data'!$B$3:$CA$19,MATCH($P$6,dfenums,0),MATCH($C23,'2024-25 Data'!$B$2:$CA$2,0))) ->  | T23: =IF(ISERROR(SUM('2024-25 Data'!P$3:P$19)/SUM('2024-25 Data'!$C$3:$D$19)),"",SUM('2024-25 Data'!P$3:P$19)/SUM('2024-25 Data'!$C$3:$D$19)) -> 22.56477701 | U23: 0.00300495286 | V23: 2.335957279e-05
B24: Building maintenance and improvement | C24: E12 | D24: =IF(ISERROR(INDEX('2024-25 Data'!$B$3:$CA$19,MATCH($C$4,dfenums,0),MATCH($C24,'2024-25 Data'!$B$2:$CA$2,0))),"",INDEX('2024-25 Data'!$B$3:$CA$19,MATCH($C$4,dfenums,0),MATCH($C24,'2024-25 Data'!$B$2:$CA$2,0))) ->  | H24: =IF(ISERROR(INDEX('2024-25 Data'!$B$3:$CA$19,MATCH($H$6,dfenums,0),MATCH($C24,'2024-25 Data'!$B$2:$CA$2,0))),"",INDEX('2024-25 Data'!$B$3:$CA$19,MATCH($H$6,dfenums,0),MATCH($C24,'2024-25 Data'!$B$2:$CA$2,0))) ->  | L24: =IF(ISERROR(INDEX('2024-25 Data'!$B$3:$CA$19,MATCH($L$6,dfenums,0),MATCH($C24,'2024-25 Data'!$B$2:$CA$2,0))),"",INDEX('2024-25 Data'!$B$3:$CA$19,MATCH($L$6,dfenums,0),MATCH($C24,'2024-25 Data'!$B$2:$CA$2,0))) ->  | P24: =IF(ISERROR(INDEX('2024-25 Data'!$B$3:$CA$19,MATCH($P$6,dfenums,0),MATCH($C24,'2024-25 Data'!$B$2:$CA$2,0))),"",INDEX('2024-25 Data'!$B$3:$CA$19,MATCH($P$6,dfenums,0),MATCH($C24,'2024-25 Data'!$B$2:$CA$2,0))) ->  | T24: =IF(ISERROR(SUM('2024-25 Data'!Q$3:Q$19)/SUM('2024-25 Data'!$C$3:$D$19)),"",SUM('2024-25 Data'!Q$3:Q$19)/SUM('2024-25 Data'!$C$3:$D$19)) -> 84.92915378 | U24: 0.01131002108 | V24: 8.792060073e-05
B25: Grounds maintenance and improvement | C25: E13 | D25: =IF(ISERROR(INDEX('2024-25 Data'!$B$3:$CA$19,MATCH($C$4,dfenums,0),MATCH($C25,'2024-25 Data'!$B$2:$CA$2,0))),"",INDEX('2024-25 Data'!$B$3:$CA$19,MATCH($C$4,dfenums,0),MATCH($C25,'2024-25 Data'!$B$2:$CA$2,0))) ->  | H25: =IF(ISERROR(INDEX('2024-25 Data'!$B$3:$CA$19,MATCH($H$6,dfenums,0),MATCH($C25,'2024-25 Data'!$B$2:$CA$2,0))),"",INDEX('2024-25 Data'!$B$3:$CA$19,MATCH($H$6,dfenums,0),MATCH($C25,'2024-25 Data'!$B$2:$CA$2,0))) ->  | L25: =IF(ISERROR(INDEX('2024-25 Data'!$B$3:$CA$19,MATCH($L$6,dfenums,0),MATCH($C25,'2024-25 Data'!$B$2:$CA$2,0))),"",INDEX('2024-25 Data'!$B$3:$CA$19,MATCH($L$6,dfenums,0),MATCH($C25,'2024-25 Data'!$B$2:$CA$2,0))) ->  | P25: =IF(ISERROR(INDEX('2024-25 Data'!$B$3:$CA$19,MATCH($P$6,dfenums,0),MATCH($C25,'2024-25 Data'!$B$2:$CA$2,0))),"",INDEX('2024-25 Data'!$B$3:$CA$19,MATCH($P$6,dfenums,0),MATCH($C25,'2024-25 Data'!$B$2:$CA$2,0))) ->  | T25: =IF(ISERROR(SUM('2024-25 Data'!R$3:R$19)/SUM('2024-25 Data'!$C$3:$D$19)),"",SUM('2024-25 Data'!R$3:R$19)/SUM('2024-25 Data'!$C$3:$D$19)) -> 20.73118592 | U25: 0.002760773413 | V25: 2.14613974e-05
B26: Cleaning and caretaking | C26: E14 | D26: =IF(ISERROR(INDEX('2024-25 Data'!$B$3:$CA$19,MATCH($C$4,dfenums,0),MATCH($C26,'2024-25 Data'!$B$2:$CA$2,0))),"",INDEX('2024-25 Data'!$B$3:$CA$19,MATCH($C$4,dfenums,0),MATCH($C26,'2024-25 Data'!$B$2:$CA$2,0))) ->  | H26: =IF(ISERROR(INDEX('2024-25 Data'!$B$3:$CA$19,MATCH($H$6,dfenums,0),MATCH($C26,'2024-25 Data'!$B$2:$CA$2,0))),"",INDEX('2024-25 Data'!$B$3:$CA$19,MATCH($H$6,dfenums,0),MATCH($C26,'2024-25 Data'!$B$2:$CA$2,0))) ->  | L26: =IF(ISERROR(INDEX('2024-25 Data'!$B$3:$CA$19,MATCH($L$6,dfenums,0),MATCH($C26,'2024-25 Data'!$B$2:$CA$2,0))),"",INDEX('2024-25 Data'!$B$3:$CA$19,MATCH($L$6,dfenums,0),MATCH($C26,'2024-25 Data'!$B$2:$CA$2,0))) ->  | P26: =IF(ISERROR(INDEX('2024-25 Data'!$B$3:$CA$19,MATCH($P$6,dfenums,0),MATCH($C26,'2024-25 Data'!$B$2:$CA$2,0))),"",INDEX('2024-25 Data'!$B$3:$CA$19,MATCH($P$6,dfenums,0),MATCH($C26,'2024-25 Data'!$B$2:$CA$2,0))) ->  | T26: =IF(ISERROR(SUM('2024-25 Data'!S$3:S$19)/SUM('2024-25 Data'!$C$3:$D$19)),"",SUM('2024-25 Data'!S$3:S$19)/SUM('2024-25 Data'!$C$3:$D$19)) -> 75.39335222 | U26: 0.01004013775 | V26: 7.804892106e-05
B27: Water and sewerage | C27: E15 | D27: =IF(ISERROR(INDEX('2024-25 Data'!$B$3:$CA$19,MATCH($C$4,dfenums,0),MATCH($C27,'2024-25 Data'!$B$2:$CA$2,0))),"",INDEX('2024-25 Data'!$B$3:$CA$19,MATCH($C$4,dfenums,0),MATCH($C27,'2024-25 Data'!$B$2:$CA$2,0))) ->  | H27: =IF(ISERROR(INDEX('2024-25 Data'!$B$3:$CA$19,MATCH($H$6,dfenums,0),MATCH($C27,'2024-25 Data'!$B$2:$CA$2,0))),"",INDEX('2024-25 Data'!$B$3:$CA$19,MATCH($H$6,dfenums,0),MATCH($C27,'2024-25 Data'!$B$2:$CA$2,0))) ->  | L27: =IF(ISERROR(INDEX('2024-25 Data'!$B$3:$CA$19,MATCH($L$6,dfenums,0),MATCH($C27,'2024-25 Data'!$B$2:$CA$2,0))),"",INDEX('2024-25 Data'!$B$3:$CA$19,MATCH($L$6,dfenums,0),MATCH($C27,'2024-25 Data'!$B$2:$CA$2,0))) ->  | P27: =IF(ISERROR(INDEX('2024-25 Data'!$B$3:$CA$19,MATCH($P$6,dfenums,0),MATCH($C27,'2024-25 Data'!$B$2:$CA$2,0))),"",INDEX('2024-25 Data'!$B$3:$CA$19,MATCH($P$6,dfenums,0),MATCH($C27,'2024-25 Data'!$B$2:$CA$2,0))) ->  | T27: =IF(ISERROR(SUM('2024-25 Data'!T$3:T$19)/SUM('2024-25 Data'!$C$3:$D$19)),"",SUM('2024-25 Data'!T$3:T$19)/SUM('2024-25 Data'!$C$3:$D$19)) -> 19.88840276 | U27: 0.002648539923 | V27: 2.058892901e-05
B28: Energy | C28: E16 | D28: =IF(ISERROR(INDEX('2024-25 Data'!$B$3:$CA$19,MATCH($C$4,dfenums,0),MATCH($C28,'2024-25 Data'!$B$2:$CA$2,0))),"",INDEX('2024-25 Data'!$B$3:$CA$19,MATCH($C$4,dfenums,0),MATCH($C28,'2024-25 Data'!$B$2:$CA$2,0))) ->  | H28: =IF(ISERROR(INDEX('2024-25 Data'!$B$3:$CA$19,MATCH($H$6,dfenums,0),MATCH($C28,'2024-25 Data'!$B$2:$CA$2,0))),"",INDEX('2024-25 Data'!$B$3:$CA$19,MATCH($H$6,dfenums,0),MATCH($C28,'2024-25 Data'!$B$2:$CA$2,0))) ->  | L28: =IF(ISERROR(INDEX('2024-25 Data'!$B$3:$CA$19,MATCH($L$6,dfenums,0),MATCH($C28,'2024-25 Data'!$B$2:$CA$2,0))),"",INDEX('2024-25 Data'!$B$3:$CA$19,MATCH($L$6,dfenums,0),MATCH($C28,'2024-25 Data'!$B$2:$CA$2,0))) ->  | P28: =IF(ISERROR(INDEX('2024-25 Data'!$B$3:$CA$19,MATCH($P$6,dfenums,0),MATCH($C28,'2024-25 Data'!$B$2:$CA$2,0))),"",INDEX('2024-25 Data'!$B$3:$CA$19,MATCH($P$6,dfenums,0),MATCH($C28,'2024-25 Data'!$B$2:$CA$2,0))) ->  | T28: =IF(ISERROR(SUM('2024-25 Data'!U$3:U$19)/SUM('2024-25 Data'!$C$3:$D$19)),"",SUM('2024-25 Data'!U$3:U$19)/SUM('2024-25 Data'!$C$3:$D$19)) -> 129.2415569 | U28: 0.01721110675 | V28: 0.000133793813
B29: Rates | C29: E17 | D29: =IF(ISERROR(INDEX('2024-25 Data'!$B$3:$CA$19,MATCH($C$4,dfenums,0),MATCH($C29,'2024-25 Data'!$B$2:$CA$2,0))),"",INDEX('2024-25 Data'!$B$3:$CA$19,MATCH($C$4,dfenums,0),MATCH($C29,'2024-25 Data'!$B$2:$CA$2,0))) ->  | H29: =IF(ISERROR(INDEX('2024-25 Data'!$B$3:$CA$19,MATCH($H$6,dfenums,0),MATCH($C29,'2024-25 Data'!$B$2:$CA$2,0))),"",INDEX('2024-25 Data'!$B$3:$CA$19,MATCH($H$6,dfenums,0),MATCH($C29,'2024-25 Data'!$B$2:$CA$2,0))) ->  | I29: =IF($H$6>0,H29/($I$6+$J$6),"") ->  | J29: =IF($H$6>0,H29/$H$52,"") ->  | L29: =IF(ISERROR(INDEX('2024-25 Data'!$B$3:$CA$19,MATCH($L$6,dfenums,0),MATCH($C29,'2024-25 Data'!$B$2:$CA$2,0))),"",INDEX('2024-25 Data'!$B$3:$CA$19,MATCH($L$6,dfenums,0),MATCH($C29,'2024-25 Data'!$B$2:$CA$2,0))) ->  | M29: =IF($L$6>0,L29/($M$6+$N$6),"") ->  | N29: =IF($L$6>0,L29/$L$52,"") ->  | P29: =IF(ISERROR(INDEX('2024-25 Data'!$B$3:$CA$19,MATCH($P$6,dfenums,0),MATCH($C29,'2024-25 Data'!$B$2:$CA$2,0))),"",INDEX('2024-25 Data'!$B$3:$CA$19,MATCH($P$6,dfenums,0),MATCH($C29,'2024-25 Data'!$B$2:$CA$2,0))) ->  | Q29: =IF($P$6>0,P29/($Q$6+$R$6),"") ->  | R29: =IF($P$6>0,P29/$P$52,"") ->  | T29: =IF(ISERROR(SUM('2024-25 Data'!V$3:V$19)/SUM('2024-25 Data'!$C$3:$D$19)),"",SUM('2024-25 Data'!V$3:V$19)/SUM('2024-25 Data'!$C$3:$D$19)) -> 94.27946239 | U29: =IF(ISERROR(T29/$T$52),"",T29/$T$52) -> 0.0125552023 | V29: =IF(ISERROR(T29/-$T$78),"",T29/-$T$78) -> 9.760025388e-05
B30: Other occupation costs | C30: E18 | D30: =IF(ISERROR(INDEX('2024-25 Data'!$B$3:$CA$19,MATCH($C$4,dfenums,0),MATCH($C30,'2024-25 Data'!$B$2:$CA$2,0))),"",INDEX('2024-25 Data'!$B$3:$CA$19,MATCH($C$4,dfenums,0),MATCH($C30,'2024-25 Data'!$B$2:$CA$2,0))) ->  | H30: =IF(ISERROR(INDEX('2024-25 Data'!$B$3:$CA$19,MATCH($H$6,dfenums,0),MATCH($C30,'2024-25 Data'!$B$2:$CA$2,0))),"",INDEX('2024-25 Data'!$B$3:$CA$19,MATCH($H$6,dfenums,0),MATCH($C30,'2024-25 Data'!$B$2:$CA$2,0))) ->  | L30: =IF(ISERROR(INDEX('2024-25 Data'!$B$3:$CA$19,MATCH($L$6,dfenums,0),MATCH($C30,'2024-25 Data'!$B$2:$CA$2,0))),"",INDEX('2024-25 Data'!$B$3:$CA$19,MATCH($L$6,dfenums,0),MATCH($C30,'2024-25 Data'!$B$2:$CA$2,0))) ->  | P30: =IF(ISERROR(INDEX('2024-25 Data'!$B$3:$CA$19,MATCH($P$6,dfenums,0),MATCH($C30,'2024-25 Data'!$B$2:$CA$2,0))),"",INDEX('2024-25 Data'!$B$3:$CA$19,MATCH($P$6,dfenums,0),MATCH($C30,'2024-25 Data'!$B$2:$CA$2,0))) ->  | T30: =IF(ISERROR(SUM('2024-25 Data'!W$3:W$19)/SUM('2024-25 Data'!$C$3:$D$19)),"",SUM('2024-25 Data'!W$3:W$19)/SUM('2024-25 Data'!$C$3:$D$19)) -> 29.13484299 | U30: 0.003879888986 | V30: 3.016105524e-05
B31: Learning resources (not ICT equipment) | C31: E19 | D31: =IF(ISERROR(INDEX('2024-25 Data'!$B$3:$CA$19,MATCH($C$4,dfenums,0),MATCH($C31,'2024-25 Data'!$B$2:$CA$2,0))),"",INDEX('2024-25 Data'!$B$3:$CA$19,MATCH($C$4,dfenums,0),MATCH($C31,'2024-25 Data'!$B$2:$CA$2,0))) ->  | H31: =IF(ISERROR(INDEX('2024-25 Data'!$B$3:$CA$19,MATCH($H$6,dfenums,0),MATCH($C31,'2024-25 Data'!$B$2:$CA$2,0))),"",INDEX('2024-25 Data'!$B$3:$CA$19,MATCH($H$6,dfenums,0),MATCH($C31,'2024-25 Data'!$B$2:$CA$2,0))) ->  | L31: =IF(ISERROR(INDEX('2024-25 Data'!$B$3:$CA$19,MATCH($L$6,dfenums,0),MATCH($C31,'2024-25 Data'!$B$2:$CA$2,0))),"",INDEX('2024-25 Data'!$B$3:$CA$19,MATCH($L$6,dfenums,0),MATCH($C31,'2024-25 Data'!$B$2:$CA$2,0))) ->  | P31: =IF(ISERROR(INDEX('2024-25 Data'!$B$3:$CA$19,MATCH($P$6,dfenums,0),MATCH($C31,'2024-25 Data'!$B$2:$CA$2,0))),"",INDEX('2024-25 Data'!$B$3:$CA$19,MATCH($P$6,dfenums,0),MATCH($C31,'2024-25 Data'!$B$2:$CA$2,0))) ->  | T31: =IF(ISERROR(SUM('2024-25 Data'!X$3:X$19)/SUM('2024-25 Data'!$C$3:$D$19)),"",SUM('2024-25 Data'!X$3:X$19)/SUM('2024-25 Data'!$C$3:$D$19)) -> 372.4423514 | U31: 0.0495981728 | V31: 0.000385560833
B32: Connectivity | C32: E20A | D32: =IF(ISERROR(INDEX('2024-25 Data'!$B$3:$CA$19,MATCH($C$4,dfenums,0),MATCH($C32,'2024-25 Data'!$B$2:$CA$2,0))),"",INDEX('2024-25 Data'!$B$3:$CA$19,MATCH($C$4,dfenums,0),MATCH($C32,'2024-25 Data'!$B$2:$CA$2,0))) ->  | E32: =IF($C$4>0,D32/($E$4+$F$4),"") ->  | F32: =IF($C$4>0,D32/$D$52,"") ->  | H32: =IF(ISERROR(INDEX('2024-25 Data'!$B$3:$CA$19,MATCH($H$6,dfenums,0),MATCH($C32,'2024-25 Data'!$B$2:$CA$2,0))),"",INDEX('2024-25 Data'!$B$3:$CA$19,MATCH($H$6,dfenums,0),MATCH($C32,'2024-25 Data'!$B$2:$CA$2,0))) ->  | L32: =IF(ISERROR(INDEX('2024-25 Data'!$B$3:$CA$19,MATCH($L$6,dfenums,0),MATCH($C32,'2024-25 Data'!$B$2:$CA$2,0))),"",INDEX('2024-25 Data'!$B$3:$CA$19,MATCH($L$6,dfenums,0),MATCH($C32,'2024-25 Data'!$B$2:$CA$2,0))) ->  | P32: =IF(ISERROR(INDEX('2024-25 Data'!$B$3:$CA$19,MATCH($P$6,dfenums,0),MATCH($C32,'2024-25 Data'!$B$2:$CA$2,0))),"",INDEX('2024-25 Data'!$B$3:$CA$19,MATCH($P$6,dfenums,0),MATCH($C32,'2024-25 Data'!$B$2:$CA$2,0))) ->  | T32: =IF(ISERROR(SUM('2024-25 Data'!Y$3:Y$19)/SUM('2024-25 Data'!$C$3:$D$19)),"",SUM('2024-25 Data'!Y$3:Y$19)/SUM('2024-25 Data'!$C$3:$D$19)) -> 16.44016502 | U32: 0.002189337873 | V32: 1.701923451e-05
B33: Onsite servers | C33: E20B | D33: =IF(ISERROR(INDEX('2024-25 Data'!$B$3:$CA$19,MATCH($C$4,dfenums,0),MATCH($C33,'2024-25 Data'!$B$2:$CA$2,0))),"",INDEX('2024-25 Data'!$B$3:$CA$19,MATCH($C$4,dfenums,0),MATCH($C33,'2024-25 Data'!$B$2:$CA$2,0))) ->  | H33: =IF(ISERROR(INDEX('2024-25 Data'!$B$3:$CA$19,MATCH($H$6,dfenums,0),MATCH($C33,'2024-25 Data'!$B$2:$CA$2,0))),"",INDEX('2024-25 Data'!$B$3:$CA$19,MATCH($H$6,dfenums,0),MATCH($C33,'2024-25 Data'!$B$2:$CA$2,0))) ->  | L33: =IF(ISERROR(INDEX('2024-25 Data'!$B$3:$CA$19,MATCH($L$6,dfenums,0),MATCH($C33,'2024-25 Data'!$B$2:$CA$2,0))),"",INDEX('2024-25 Data'!$B$3:$CA$19,MATCH($L$6,dfenums,0),MATCH($C33,'2024-25 Data'!$B$2:$CA$2,0))) ->  | P33: =IF(ISERROR(INDEX('2024-25 Data'!$B$3:$CA$19,MATCH($P$6,dfenums,0),MATCH($C33,'2024-25 Data'!$B$2:$CA$2,0))),"",INDEX('2024-25 Data'!$B$3:$CA$19,MATCH($P$6,dfenums,0),MATCH($C33,'2024-25 Data'!$B$2:$CA$2,0))) ->  | T33: =IF(ISERROR(SUM('2024-25 Data'!Z$3:Z$19)/SUM('2024-25 Data'!$C$3:$D$19)),"",SUM('2024-25 Data'!Z$3:Z$19)/SUM('2024-25 Data'!$C$3:$D$19)) -> 3.735096327 | U33: 0.0004974030272 | V33: 3.86665707e-06
B34: IT learning resources | C34: E20C | D34: =IF(ISERROR(INDEX('2024-25 Data'!$B$3:$CA$19,MATCH($C$4,dfenums,0),MATCH($C34,'2024-25 Data'!$B$2:$CA$2,0))),"",INDEX('2024-25 Data'!$B$3:$CA$19,MATCH($C$4,dfenums,0),MATCH($C34,'2024-25 Data'!$B$2:$CA$2,0))) ->  | H34: =IF(ISERROR(INDEX('2024-25 Data'!$B$3:$CA$19,MATCH($H$6,dfenums,0),MATCH($C34,'2024-25 Data'!$B$2:$CA$2,0))),"",INDEX('2024-25 Data'!$B$3:$CA$19,MATCH($H$6,dfenums,0),MATCH($C34,'2024-25 Data'!$B$2:$CA$2,0))) ->  | L34: =IF(ISERROR(INDEX('2024-25 Data'!$B$3:$CA$19,MATCH($L$6,dfenums,0),MATCH($C34,'2024-25 Data'!$B$2:$CA$2,0))),"",INDEX('2024-25 Data'!$B$3:$CA$19,MATCH($L$6,dfenums,0),MATCH($C34,'2024-25 Data'!$B$2:$CA$2,0))) ->  | P34: =IF(ISERROR(INDEX('2024-25 Data'!$B$3:$CA$19,MATCH($P$6,dfenums,0),MATCH($C34,'2024-25 Data'!$B$2:$CA$2,0))),"",INDEX('2024-25 Data'!$B$3:$CA$19,MATCH($P$6,dfenums,0),MATCH($C34,'2024-25 Data'!$B$2:$CA$2,0))) ->  | T34: =IF(ISERROR(SUM('2024-25 Data'!AA$3:AA$19)/SUM('2024-25 Data'!$C$3:$D$19)),"",SUM('2024-25 Data'!AA$3:AA$19)/SUM('2024-25 Data'!$C$3:$D$19)) -> 17.58699583 | U34: 0.002342061409 | V34: 1.820645997e-05
B35: Administration software and systems | C35: E20D | D35: =IF(ISERROR(INDEX('2024-25 Data'!$B$3:$CA$19,MATCH($C$4,dfenums,0),MATCH($C35,'2024-25 Data'!$B$2:$CA$2,0))),"",INDEX('2024-25 Data'!$B$3:$CA$19,MATCH($C$4,dfenums,0),MATCH($C35,'2024-25 Data'!$B$2:$CA$2,0))) ->  | H35: =IF(ISERROR(INDEX('2024-25 Data'!$B$3:$CA$19,MATCH($H$6,dfenums,0),MATCH($C35,'2024-25 Data'!$B$2:$CA$2,0))),"",INDEX('2024-25 Data'!$B$3:$CA$19,MATCH($H$6,dfenums,0),MATCH($C35,'2024-25 Data'!$B$2:$CA$2,0))) ->  | L35: =IF(ISERROR(INDEX('2024-25 Data'!$B$3:$CA$19,MATCH($L$6,dfenums,0),MATCH($C35,'2024-25 Data'!$B$2:$CA$2,0))),"",INDEX('2024-25 Data'!$B$3:$CA$19,MATCH($L$6,dfenums,0),MATCH($C35,'2024-25 Data'!$B$2:$CA$2,0))) ->  | P35: =IF(ISERROR(INDEX('2024-25 Data'!$B$3:$CA$19,MATCH($P$6,dfenums,0),MATCH($C35,'2024-25 Data'!$B$2:$CA$2,0))),"",INDEX('2024-25 Data'!$B$3:$CA$19,MATCH($P$6,dfenums,0),MATCH($C35,'2024-25 Data'!$B$2:$CA$2,0))) ->  | T35: =IF(ISERROR(SUM('2024-25 Data'!AB$3:AB$19)/SUM('2024-25 Data'!$C$3:$D$19)),"",SUM('2024-25 Data'!AB$3:AB$19)/SUM('2024-25 Data'!$C$3:$D$19)) -> 40.40116454 | U35: 0.005380225778 | V35: 4.182420875e-05
B36: Laptops, desktops and tablets | C36: E20E | D36: =IF(ISERROR(INDEX('2024-25 Data'!$B$3:$CA$19,MATCH($C$4,dfenums,0),MATCH($C36,'2024-25 Data'!$B$2:$CA$2,0))),"",INDEX('2024-25 Data'!$B$3:$CA$19,MATCH($C$4,dfenums,0),MATCH($C36,'2024-25 Data'!$B$2:$CA$2,0))) ->  | H36: =IF(ISERROR(INDEX('2024-25 Data'!$B$3:$CA$19,MATCH($H$6,dfenums,0),MATCH($C36,'2024-25 Data'!$B$2:$CA$2,0))),"",INDEX('2024-25 Data'!$B$3:$CA$19,MATCH($H$6,dfenums,0),MATCH($C36,'2024-25 Data'!$B$2:$CA$2,0))) ->  | L36: =IF(ISERROR(INDEX('2024-25 Data'!$B$3:$CA$19,MATCH($L$6,dfenums,0),MATCH($C36,'2024-25 Data'!$B$2:$CA$2,0))),"",INDEX('2024-25 Data'!$B$3:$CA$19,MATCH($L$6,dfenums,0),MATCH($C36,'2024-25 Data'!$B$2:$CA$2,0))) ->  | P36: =IF(ISERROR(INDEX('2024-25 Data'!$B$3:$CA$19,MATCH($P$6,dfenums,0),MATCH($C36,'2024-25 Data'!$B$2:$CA$2,0))),"",INDEX('2024-25 Data'!$B$3:$CA$19,MATCH($P$6,dfenums,0),MATCH($C36,'2024-25 Data'!$B$2:$CA$2,0))) ->  | T36: =IF(ISERROR(SUM('2024-25 Data'!AC$3:AC$19)/SUM('2024-25 Data'!$C$3:$D$19)),"",SUM('2024-25 Data'!AC$3:AC$19)/SUM('2024-25 Data'!$C$3:$D$19)) -> 25.27749379 | U36: 0.003366205536 | V36: 2.61678392e-05
B37: Other hardware | C37: E20F | D37: =IF(ISERROR(INDEX('2024-25 Data'!$B$3:$CA$19,MATCH($C$4,dfenums,0),MATCH($C37,'2024-25 Data'!$B$2:$CA$2,0))),"",INDEX('2024-25 Data'!$B$3:$CA$19,MATCH($C$4,dfenums,0),MATCH($C37,'2024-25 Data'!$B$2:$CA$2,0))) ->  | H37: =IF(ISERROR(INDEX('2024-25 Data'!$B$3:$CA$19,MATCH($H$6,dfenums,0),MATCH($C37,'2024-25 Data'!$B$2:$CA$2,0))),"",INDEX('2024-25 Data'!$B$3:$CA$19,MATCH($H$6,dfenums,0),MATCH($C37,'2024-25 Data'!$B$2:$CA$2,0))) ->  | L37: =IF(ISERROR(INDEX('2024-25 Data'!$B$3:$CA$19,MATCH($L$6,dfenums,0),MATCH($C37,'2024-25 Data'!$B$2:$CA$2,0))),"",INDEX('2024-25 Data'!$B$3:$CA$19,MATCH($L$6,dfenums,0),MATCH($C37,'2024-25 Data'!$B$2:$CA$2,0))) ->  | P37: =IF(ISERROR(INDEX('2024-25 Data'!$B$3:$CA$19,MATCH($P$6,dfenums,0),MATCH($C37,'2024-25 Data'!$B$2:$CA$2,0))),"",INDEX('2024-25 Data'!$B$3:$CA$19,MATCH($P$6,dfenums,0),MATCH($C37,'2024-25 Data'!$B$2:$CA$2,0))) ->  | T37: =IF(ISERROR(SUM('2024-25 Data'!AD$3:AD$19)/SUM('2024-25 Data'!$C$3:$D$19)),"",SUM('2024-25 Data'!AD$3:AD$19)/SUM('2024-25 Data'!$C$3:$D$19)) -> 15.93845726 | U37: 0.002122525418 | V37: 1.649985517e-05
B38: IT support | C38: E20G | D38: =IF(ISERROR(INDEX('2024-25 Data'!$B$3:$CA$19,MATCH($C$4,dfenums,0),MATCH($C38,'2024-25 Data'!$B$2:$CA$2,0))),"",INDEX('2024-25 Data'!$B$3:$CA$19,MATCH($C$4,dfenums,0),MATCH($C38,'2024-25 Data'!$B$2:$CA$2,0))) ->  | H38: =IF(ISERROR(INDEX('2024-25 Data'!$B$3:$CA$19,MATCH($H$6,dfenums,0),MATCH($C38,'2024-25 Data'!$B$2:$CA$2,0))),"",INDEX('2024-25 Data'!$B$3:$CA$19,MATCH($H$6,dfenums,0),MATCH($C38,'2024-25 Data'!$B$2:$CA$2,0))) ->  | L38: =IF(ISERROR(INDEX('2024-25 Data'!$B$3:$CA$19,MATCH($L$6,dfenums,0),MATCH($C38,'2024-25 Data'!$B$2:$CA$2,0))),"",INDEX('2024-25 Data'!$B$3:$CA$19,MATCH($L$6,dfenums,0),MATCH($C38,'2024-25 Data'!$B$2:$CA$2,0))) ->  | P38: =IF(ISERROR(INDEX('2024-25 Data'!$B$3:$CA$19,MATCH($P$6,dfenums,0),MATCH($C38,'2024-25 Data'!$B$2:$CA$2,0))),"",INDEX('2024-25 Data'!$B$3:$CA$19,MATCH($P$6,dfenums,0),MATCH($C38,'2024-25 Data'!$B$2:$CA$2,0))) ->  | T38: =IF(ISERROR(SUM('2024-25 Data'!AE$3:AE$19)/SUM('2024-25 Data'!$C$3:$D$19)),"",SUM('2024-25 Data'!AE$3:AE$19)/SUM('2024-25 Data'!$C$3:$D$19)) -> 13.7915934 | U38: 0.001836627414 | V38: 1.427737265e-05
B39: Exam fees | C39: E21 | D39: =IF(ISERROR(INDEX('2024-25 Data'!$B$3:$CA$19,MATCH($C$4,dfenums,0),MATCH($C39,'2024-25 Data'!$B$2:$CA$2,0))),"",INDEX('2024-25 Data'!$B$3:$CA$19,MATCH($C$4,dfenums,0),MATCH($C39,'2024-25 Data'!$B$2:$CA$2,0))) ->  | F39: =IF($C$4>0,D39/$D$52,"") ->  | H39: =IF(ISERROR(INDEX('2024-25 Data'!$B$3:$CA$19,MATCH($H$6,dfenums,0),MATCH($C39,'2024-25 Data'!$B$2:$CA$2,0))),"",INDEX('2024-25 Data'!$B$3:$CA$19,MATCH($H$6,dfenums,0),MATCH($C39,'2024-25 Data'!$B$2:$CA$2,0))) ->  | L39: =IF(ISERROR(INDEX('2024-25 Data'!$B$3:$CA$19,MATCH($L$6,dfenums,0),MATCH($C39,'2024-25 Data'!$B$2:$CA$2,0))),"",INDEX('2024-25 Data'!$B$3:$CA$19,MATCH($L$6,dfenums,0),MATCH($C39,'2024-25 Data'!$B$2:$CA$2,0))) ->  | P39: =IF(ISERROR(INDEX('2024-25 Data'!$B$3:$CA$19,MATCH($P$6,dfenums,0),MATCH($C39,'2024-25 Data'!$B$2:$CA$2,0))),"",INDEX('2024-25 Data'!$B$3:$CA$19,MATCH($P$6,dfenums,0),MATCH($C39,'2024-25 Data'!$B$2:$CA$2,0))) ->  | T39: =IF(ISERROR(SUM('2024-25 Data'!AF$3:AF$19)/SUM('2024-25 Data'!$C$3:$D$19)),"",SUM('2024-25 Data'!AF$3:AF$19)/SUM('2024-25 Data'!$C$3:$D$19)) -> 131.0755362 | U39: 0.01745533791 | V39: 0.0001356923903
B40: Administrative supplies | C40: E22 | D40: =IF(ISERROR(INDEX('2024-25 Data'!$B$3:$CA$19,MATCH($C$4,dfenums,0),MATCH($C40,'2024-25 Data'!$B$2:$CA$2,0))),"",INDEX('2024-25 Data'!$B$3:$CA$19,MATCH($C$4,dfenums,0),MATCH($C40,'2024-25 Data'!$B$2:$CA$2,0))) ->  | H40: =IF(ISERROR(INDEX('2024-25 Data'!$B$3:$CA$19,MATCH($H$6,dfenums,0),MATCH($C40,'2024-25 Data'!$B$2:$CA$2,0))),"",INDEX('2024-25 Data'!$B$3:$CA$19,MATCH($H$6,dfenums,0),MATCH($C40,'2024-25 Data'!$B$2:$CA$2,0))) ->  | L40: =IF(ISERROR(INDEX('2024-25 Data'!$B$3:$CA$19,MATCH($L$6,dfenums,0),MATCH($C40,'2024-25 Data'!$B$2:$CA$2,0))),"",INDEX('2024-25 Data'!$B$3:$CA$19,MATCH($L$6,dfenums,0),MATCH($C40,'2024-25 Data'!$B$2:$CA$2,0))) ->  | P40: =IF(ISERROR(INDEX('2024-25 Data'!$B$3:$CA$19,MATCH($P$6,dfenums,0),MATCH($C40,'2024-25 Data'!$B$2:$CA$2,0))),"",INDEX('2024-25 Data'!$B$3:$CA$19,MATCH($P$6,dfenums,0),MATCH($C40,'2024-25 Data'!$B$2:$CA$2,0))) ->  | T40: =IF(ISERROR(SUM('2024-25 Data'!AG$3:AG$19)/SUM('2024-25 Data'!$C$3:$D$19)),"",SUM('2024-25 Data'!AG$3:AG$19)/SUM('2024-25 Data'!$C$3:$D$19)) -> 43.35830947 | U40: 0.005774028966 | V40: 4.488551276e-05
B41: Other insurance premiums | C41: E23 | D41: =IF(ISERROR(INDEX('2024-25 Data'!$B$3:$CA$19,MATCH($C$4,dfenums,0),MATCH($C41,'2024-25 Data'!$B$2:$CA$2,0))),"",INDEX('2024-25 Data'!$B$3:$CA$19,MATCH($C$4,dfenums,0),MATCH($C41,'2024-25 Data'!$B$2:$CA$2,0))) ->  | H41: =IF(ISERROR(INDEX('2024-25 Data'!$B$3:$CA$19,MATCH($H$6,dfenums,0),MATCH($C41,'2024-25 Data'!$B$2:$CA$2,0))),"",INDEX('2024-25 Data'!$B$3:$CA$19,MATCH($H$6,dfenums,0),MATCH($C41,'2024-25 Data'!$B$2:$CA$2,0))) ->  | L41: =IF(ISERROR(INDEX('2024-25 Data'!$B$3:$CA$19,MATCH($L$6,dfenums,0),MATCH($C41,'2024-25 Data'!$B$2:$CA$2,0))),"",INDEX('2024-25 Data'!$B$3:$CA$19,MATCH($L$6,dfenums,0),MATCH($C41,'2024-25 Data'!$B$2:$CA$2,0))) ->  | P41: =IF(ISERROR(INDEX('2024-25 Data'!$B$3:$CA$19,MATCH($P$6,dfenums,0),MATCH($C41,'2024-25 Data'!$B$2:$CA$2,0))),"",INDEX('2024-25 Data'!$B$3:$CA$19,MATCH($P$6,dfenums,0),MATCH($C41,'2024-25 Data'!$B$2:$CA$2,0))) ->  | T41: =IF(ISERROR(SUM('2024-25 Data'!AH$3:AH$19)/SUM('2024-25 Data'!$C$3:$D$19)),"",SUM('2024-25 Data'!AH$3:AH$19)/SUM('2024-25 Data'!$C$3:$D$19)) -> 24.71341177 | U41: 0.003291086696 | V41: 2.55838886e-05
B42: Special facilities | C42: E24 | D42: =IF(ISERROR(INDEX('2024-25 Data'!$B$3:$CA$19,MATCH($C$4,dfenums,0),MATCH($C42,'2024-25 Data'!$B$2:$CA$2,0))),"",INDEX('2024-25 Data'!$B$3:$CA$19,MATCH($C$4,dfenums,0),MATCH($C42,'2024-25 Data'!$B$2:$CA$2,0))) ->  | H42: =IF(ISERROR(INDEX('2024-25 Data'!$B$3:$CA$19,MATCH($H$6,dfenums,0),MATCH($C42,'2024-25 Data'!$B$2:$CA$2,0))),"",INDEX('2024-25 Data'!$B$3:$CA$19,MATCH($H$6,dfenums,0),MATCH($C42,'2024-25 Data'!$B$2:$CA$2,0))) ->  | L42: =IF(ISERROR(INDEX('2024-25 Data'!$B$3:$CA$19,MATCH($L$6,dfenums,0),MATCH($C42,'2024-25 Data'!$B$2:$CA$2,0))),"",INDEX('2024-25 Data'!$B$3:$CA$19,MATCH($L$6,dfenums,0),MATCH($C42,'2024-25 Data'!$B$2:$CA$2,0))) ->  | P42: =IF(ISERROR(INDEX('2024-25 Data'!$B$3:$CA$19,MATCH($P$6,dfenums,0),MATCH($C42,'2024-25 Data'!$B$2:$CA$2,0))),"",INDEX('2024-25 Data'!$B$3:$CA$19,MATCH($P$6,dfenums,0),MATCH($C42,'2024-25 Data'!$B$2:$CA$2,0))) ->  | T42: =IF(ISERROR(SUM('2024-25 Data'!AI$3:AI$19)/SUM('2024-25 Data'!$C$3:$D$19)),"",SUM('2024-25 Data'!AI$3:AI$19)/SUM('2024-25 Data'!$C$3:$D$19)) -> 37.78576863 | U42: 0.00503193333 | V42: 3.911669114e-05
B43: Catering supplies | C43: E25 | D43: =IF(ISERROR(INDEX('2024-25 Data'!$B$3:$CA$19,MATCH($C$4,dfenums,0),MATCH($C43,'2024-25 Data'!$B$2:$CA$2,0))),"",INDEX('2024-25 Data'!$B$3:$CA$19,MATCH($C$4,dfenums,0),MATCH($C43,'2024-25 Data'!$B$2:$CA$2,0))) ->  | H43: =IF(ISERROR(INDEX('2024-25 Data'!$B$3:$CA$19,MATCH($H$6,dfenums,0),MATCH($C43,'2024-25 Data'!$B$2:$CA$2,0))),"",INDEX('2024-25 Data'!$B$3:$CA$19,MATCH($H$6,dfenums,0),MATCH($C43,'2024-25 Data'!$B$2:$CA$2,0))) ->  | L43: =IF(ISERROR(INDEX('2024-25 Data'!$B$3:$CA$19,MATCH($L$6,dfenums,0),MATCH($C43,'2024-25 Data'!$B$2:$CA$2,0))),"",INDEX('2024-25 Data'!$B$3:$CA$19,MATCH($L$6,dfenums,0),MATCH($C43,'2024-25 Data'!$B$2:$CA$2,0))) ->  | P43: =IF(ISERROR(INDEX('2024-25 Data'!$B$3:$CA$19,MATCH($P$6,dfenums,0),MATCH($C43,'2024-25 Data'!$B$2:$CA$2,0))),"",INDEX('2024-25 Data'!$B$3:$CA$19,MATCH($P$6,dfenums,0),MATCH($C43,'2024-25 Data'!$B$2:$CA$2,0))) ->  | T43: =IF(ISERROR(SUM('2024-25 Data'!AJ$3:AJ$19)/SUM('2024-25 Data'!$C$3:$D$19)),"",SUM('2024-25 Data'!AJ$3:AJ$19)/SUM('2024-25 Data'!$C$3:$D$19)) -> 115.5618261 | U43: 0.0153893761 | V43: 0.0001196322431
B44: Agency supply teaching staff | C44: E26 | D44: =IF(ISERROR(INDEX('2024-25 Data'!$B$3:$CA$19,MATCH($C$4,dfenums,0),MATCH($C44,'2024-25 Data'!$B$2:$CA$2,0))),"",INDEX('2024-25 Data'!$B$3:$CA$19,MATCH($C$4,dfenums,0),MATCH($C44,'2024-25 Data'!$B$2:$CA$2,0))) ->  | H44: =IF(ISERROR(INDEX('2024-25 Data'!$B$3:$CA$19,MATCH($H$6,dfenums,0),MATCH($C44,'2024-25 Data'!$B$2:$CA$2,0))),"",INDEX('2024-25 Data'!$B$3:$CA$19,MATCH($H$6,dfenums,0),MATCH($C44,'2024-25 Data'!$B$2:$CA$2,0))) ->  | L44: =IF(ISERROR(INDEX('2024-25 Data'!$B$3:$CA$19,MATCH($L$6,dfenums,0),MATCH($C44,'2024-25 Data'!$B$2:$CA$2,0))),"",INDEX('2024-25 Data'!$B$3:$CA$19,MATCH($L$6,dfenums,0),MATCH($C44,'2024-25 Data'!$B$2:$CA$2,0))) ->  | P44: =IF(ISERROR(INDEX('2024-25 Data'!$B$3:$CA$19,MATCH($P$6,dfenums,0),MATCH($C44,'2024-25 Data'!$B$2:$CA$2,0))),"",INDEX('2024-25 Data'!$B$3:$CA$19,MATCH($P$6,dfenums,0),MATCH($C44,'2024-25 Data'!$B$2:$CA$2,0))) ->  | T44: =IF(ISERROR(SUM('2024-25 Data'!AK$3:AK$19)/SUM('2024-25 Data'!$C$3:$D$19)),"",SUM('2024-25 Data'!AK$3:AK$19)/SUM('2024-25 Data'!$C$3:$D$19)) -> 82.74967808 | U44: 0.01101978015 | V44: 8.566435768e-05
B45: Bought in professional services - curriculum | C45: E27 | D45: =IF(ISERROR(INDEX('2024-25 Data'!$B$3:$CA$19,MATCH($C$4,dfenums,0),MATCH($C45,'2024-25 Data'!$B$2:$CA$2,0))),"",INDEX('2024-25 Data'!$B$3:$CA$19,MATCH($C$4,dfenums,0),MATCH($C45,'2024-25 Data'!$B$2:$CA$2,0))) ->  | H45: =IF(ISERROR(INDEX('2024-25 Data'!$B$3:$CA$19,MATCH($H$6,dfenums,0),MATCH($C45,'2024-25 Data'!$B$2:$CA$2,0))),"",INDEX('2024-25 Data'!$B$3:$CA$19,MATCH($H$6,dfenums,0),MATCH($C45,'2024-25 Data'!$B$2:$CA$2,0))) ->  | L45: =IF(ISERROR(INDEX('2024-25 Data'!$B$3:$CA$19,MATCH($L$6,dfenums,0),MATCH($C45,'2024-25 Data'!$B$2:$CA$2,0))),"",INDEX('2024-25 Data'!$B$3:$CA$19,MATCH($L$6,dfenums,0),MATCH($C45,'2024-25 Data'!$B$2:$CA$2,0))) ->  | P45: =IF(ISERROR(INDEX('2024-25 Data'!$B$3:$CA$19,MATCH($P$6,dfenums,0),MATCH($C45,'2024-25 Data'!$B$2:$CA$2,0))),"",INDEX('2024-25 Data'!$B$3:$CA$19,MATCH($P$6,dfenums,0),MATCH($C45,'2024-25 Data'!$B$2:$CA$2,0))) ->  | T45: =IF(ISERROR(SUM('2024-25 Data'!AL$3:AL$19)/SUM('2024-25 Data'!$C$3:$D$19)),"",SUM('2024-25 Data'!AL$3:AL$19)/SUM('2024-25 Data'!$C$3:$D$19)) -> 100.9901285 | U45: 0.01344886215 | V45: 0.0001045472887
B46: Bought in professional services other | C46: E28 | D46: =IF(ISERROR(INDEX('2024-25 Data'!$B$3:$CA$19,MATCH($C$4,dfenums,0),MATCH($C46,'2024-25 Data'!$B$2:$CA$2,0))),"",INDEX('2024-25 Data'!$B$3:$CA$19,MATCH($C$4,dfenums,0),MATCH($C46,'2024-25 Data'!$B$2:$CA$2,0))) ->  | E46: =IF($C$4>0,D46/($E$4+$F$4),"") ->  | H46: =IF(ISERROR(INDEX('2024-25 Data'!$B$3:$CA$19,MATCH($H$6,dfenums,0),MATCH($C46,'2024-25 Data'!$B$2:$CA$2,0))),"",INDEX('2024-25 Data'!$B$3:$CA$19,MATCH($H$6,dfenums,0),MATCH($C46,'2024-25 Data'!$B$2:$CA$2,0))) ->  | L46: =IF(ISERROR(INDEX('2024-25 Data'!$B$3:$CA$19,MATCH($L$6,dfenums,0),MATCH($C46,'2024-25 Data'!$B$2:$CA$2,0))),"",INDEX('2024-25 Data'!$B$3:$CA$19,MATCH($L$6,dfenums,0),MATCH($C46,'2024-25 Data'!$B$2:$CA$2,0))) ->  | P46: =IF(ISERROR(INDEX('2024-25 Data'!$B$3:$CA$19,MATCH($P$6,dfenums,0),MATCH($C46,'2024-25 Data'!$B$2:$CA$2,0))),"",INDEX('2024-25 Data'!$B$3:$CA$19,MATCH($P$6,dfenums,0),MATCH($C46,'2024-25 Data'!$B$2:$CA$2,0))) ->  | T46: =IF(ISERROR(SUM('2024-25 Data'!AM$3:AM$19)/SUM('2024-25 Data'!$C$3:$D$19)),"",SUM('2024-25 Data'!AM$3:AM$19)/SUM('2024-25 Data'!$C$3:$D$19)) -> 48.00465905 | U46: 0.00639278365 | V46: 4.969552001e-05
B47: Bought in professional services other | C47: E28b | D47: =IF(ISERROR(INDEX('2024-25 Data'!$B$3:$CA$19,MATCH($C$4,dfenums,0),MATCH($C47,'2024-25 Data'!$B$2:$CA$2,0))),"",INDEX('2024-25 Data'!$B$3:$CA$19,MATCH($C$4,dfenums,0),MATCH($C47,'2024-25 Data'!$B$2:$CA$2,0))) ->  | H47: =IF(ISERROR(INDEX('2024-25 Data'!$B$3:$CA$19,MATCH($H$6,dfenums,0),MATCH($C47,'2024-25 Data'!$B$2:$CA$2,0))),"",INDEX('2024-25 Data'!$B$3:$CA$19,MATCH($H$6,dfenums,0),MATCH($C47,'2024-25 Data'!$B$2:$CA$2,0))) ->  | L47: =IF(ISERROR(INDEX('2024-25 Data'!$B$3:$CA$19,MATCH($L$6,dfenums,0),MATCH($C47,'2024-25 Data'!$B$2:$CA$2,0))),"",INDEX('2024-25 Data'!$B$3:$CA$19,MATCH($L$6,dfenums,0),MATCH($C47,'2024-25 Data'!$B$2:$CA$2,0))) ->  | P47: =IF(ISERROR(INDEX('2024-25 Data'!$B$3:$CA$19,MATCH($P$6,dfenums,0),MATCH($C47,'2024-25 Data'!$B$2:$CA$2,0))),"",INDEX('2024-25 Data'!$B$3:$CA$19,MATCH($P$6,dfenums,0),MATCH($C47,'2024-25 Data'!$B$2:$CA$2,0))) ->  | T47: =IF(ISERROR(SUM('2024-25 Data'!AN$3:AN$19)/SUM('2024-25 Data'!$C$3:$D$19)),"",SUM('2024-25 Data'!AN$3:AN$19)/SUM('2024-25 Data'!$C$3:$D$19)) -> 0 | U47: 0 | V47: 0
B48: Loan interest | C48: E29 | D48: =IF(ISERROR(INDEX('2024-25 Data'!$B$3:$CA$19,MATCH($C$4,dfenums,0),MATCH($C48,'2024-25 Data'!$B$2:$CA$2,0))),"",INDEX('2024-25 Data'!$B$3:$CA$19,MATCH($C$4,dfenums,0),MATCH($C48,'2024-25 Data'!$B$2:$CA$2,0))) ->  | H48: =IF(ISERROR(INDEX('2024-25 Data'!$B$3:$CA$19,MATCH($H$6,dfenums,0),MATCH($C48,'2024-25 Data'!$B$2:$CA$2,0))),"",INDEX('2024-25 Data'!$B$3:$CA$19,MATCH($H$6,dfenums,0),MATCH($C48,'2024-25 Data'!$B$2:$CA$2,0))) ->  | L48: =IF(ISERROR(INDEX('2024-25 Data'!$B$3:$CA$19,MATCH($L$6,dfenums,0),MATCH($C48,'2024-25 Data'!$B$2:$CA$2,0))),"",INDEX('2024-25 Data'!$B$3:$CA$19,MATCH($L$6,dfenums,0),MATCH($C48,'2024-25 Data'!$B$2:$CA$2,0))) ->  | P48: =IF(ISERROR(INDEX('2024-25 Data'!$B$3:$CA$19,MATCH($P$6,dfenums,0),MATCH($C48,'2024-25 Data'!$B$2:$CA$2,0))),"",INDEX('2024-25 Data'!$B$3:$CA$19,MATCH($P$6,dfenums,0),MATCH($C48,'2024-25 Data'!$B$2:$CA$2,0))) ->  | T48: =IF(ISERROR(SUM('2024-25 Data'!AO$3:AO$19)/SUM('2024-25 Data'!$C$3:$D$19)),"",SUM('2024-25 Data'!AO$3:AO$19)/SUM('2024-25 Data'!$C$3:$D$19)) -> 6.227937878 | U48: 0.0008293749029 | V48: 6.447303608e-06
B49: Direct revenue financing (rev contrib. to cap) | C49: E30 | D49: =IF(ISERROR(INDEX('2024-25 Data'!$B$3:$CA$19,MATCH($C$4,dfenums,0),MATCH($C49,'2024-25 Data'!$B$2:$CA$2,0))),"",INDEX('2024-25 Data'!$B$3:$CA$19,MATCH($C$4,dfenums,0),MATCH($C49,'2024-25 Data'!$B$2:$CA$2,0))) ->  | H49: =IF(ISERROR(INDEX('2024-25 Data'!$B$3:$CA$19,MATCH($H$6,dfenums,0),MATCH($C49,'2024-25 Data'!$B$2:$CA$2,0))),"",INDEX('2024-25 Data'!$B$3:$CA$19,MATCH($H$6,dfenums,0),MATCH($C49,'2024-25 Data'!$B$2:$CA$2,0))) ->  | L49: =IF(ISERROR(INDEX('2024-25 Data'!$B$3:$CA$19,MATCH($L$6,dfenums,0),MATCH($C49,'2024-25 Data'!$B$2:$CA$2,0))),"",INDEX('2024-25 Data'!$B$3:$CA$19,MATCH($L$6,dfenums,0),MATCH($C49,'2024-25 Data'!$B$2:$CA$2,0))) ->  | P49: =IF(ISERROR(INDEX('2024-25 Data'!$B$3:$CA$19,MATCH($P$6,dfenums,0),MATCH($C49,'2024-25 Data'!$B$2:$CA$2,0))),"",INDEX('2024-25 Data'!$B$3:$CA$19,MATCH($P$6,dfenums,0),MATCH($C49,'2024-25 Data'!$B$2:$CA$2,0))) ->  | T49: =IF(ISERROR(SUM('2024-25 Data'!AP$3:AP$19)/SUM('2024-25 Data'!$C$3:$D$19)),"",SUM('2024-25 Data'!AP$3:AP$19)/SUM('2024-25 Data'!$C$3:$D$19)) -> 137.6785682 | U49: 0.01833466412 | V49: 0.0001425279999
B50: Community focussed extended school staff | C50: E31 | D50: =IF(ISERROR(INDEX('2024-25 Data'!$B$3:$CA$19,MATCH($C$4,dfenums,0),MATCH($C50,'2024-25 Data'!$B$2:$CA$2,0))),"",INDEX('2024-25 Data'!$B$3:$CA$19,MATCH($C$4,dfenums,0),MATCH($C50,'2024-25 Data'!$B$2:$CA$2,0))) ->  | H50: =IF(ISERROR(INDEX('2024-25 Data'!$B$3:$CA$19,MATCH($H$6,dfenums,0),MATCH($C50,'2024-25 Data'!$B$2:$CA$2,0))),"",INDEX('2024-25 Data'!$B$3:$CA$19,MATCH($H$6,dfenums,0),MATCH($C50,'2024-25 Data'!$B$2:$CA$2,0))) ->  | L50: =IF(ISERROR(INDEX('2024-25 Data'!$B$3:$CA$19,MATCH($L$6,dfenums,0),MATCH($C50,'2024-25 Data'!$B$2:$CA$2,0))),"",INDEX('2024-25 Data'!$B$3:$CA$19,MATCH($L$6,dfenums,0),MATCH($C50,'2024-25 Data'!$B$2:$CA$2,0))) ->  | P50: =IF(ISERROR(INDEX('2024-25 Data'!$B$3:$CA$19,MATCH($P$6,dfenums,0),MATCH($C50,'2024-25 Data'!$B$2:$CA$2,0))),"",INDEX('2024-25 Data'!$B$3:$CA$19,MATCH($P$6,dfenums,0),MATCH($C50,'2024-25 Data'!$B$2:$CA$2,0))) ->  | T50: =IF(ISERROR(SUM('2024-25 Data'!AQ$3:AQ$19)/SUM('2024-25 Data'!$C$3:$D$19)),"",SUM('2024-25 Data'!AQ$3:AQ$19)/SUM('2024-25 Data'!$C$3:$D$19)) -> 0 | U50: 0 | V50: 0
B51: Community focussed extended school costs | C51: E32 | D51: =IF(ISERROR(INDEX('2024-25 Data'!$B$3:$CA$19,MATCH($C$4,dfenums,0),MATCH($C51,'2024-25 Data'!$B$2:$CA$2,0))),"",INDEX('2024-25 Data'!$B$3:$CA$19,MATCH($C$4,dfenums,0),MATCH($C51,'2024-25 Data'!$B$2:$CA$2,0))) ->  | H51: =IF(ISERROR(INDEX('2024-25 Data'!$B$3:$CA$19,MATCH($H$6,dfenums,0),MATCH($C51,'2024-25 Data'!$B$2:$CA$2,0))),"",INDEX('2024-25 Data'!$B$3:$CA$19,MATCH($H$6,dfenums,0),MATCH($C51,'2024-25 Data'!$B$2:$CA$2,0))) ->  | L51: =IF(ISERROR(INDEX('2024-25 Data'!$B$3:$CA$19,MATCH($L$6,dfenums,0),MATCH($C51,'2024-25 Data'!$B$2:$CA$2,0))),"",INDEX('2024-25 Data'!$B$3:$CA$19,MATCH($L$6,dfenums,0),MATCH($C51,'2024-25 Data'!$B$2:$CA$2,0))) ->  | P51: =IF(ISERROR(INDEX('2024-25 Data'!$B$3:$CA$19,MATCH($P$6,dfenums,0),MATCH($C51,'2024-25 Data'!$B$2:$CA$2,0))),"",INDEX('2024-25 Data'!$B$3:$CA$19,MATCH($P$6,dfenums,0),MATCH($C51,'2024-25 Data'!$B$2:$CA$2,0))) ->  | T51: =IF(ISERROR(SUM('2024-25 Data'!AR$3:AR$19)/SUM('2024-25 Data'!$C$3:$D$19)),"",SUM('2024-25 Data'!AR$3:AR$19)/SUM('2024-25 Data'!$C$3:$D$19)) -> 0 | U51: 0 | V51: 0
B52: Total Expenditure | D52: =IF($C$4>0,SUM(D13:D51),"") ->  | E52: =IF($C$4>0,SUM(E13:E51),"") ->  | F52: =IF($C$4>0,SUM(F13:F51),"") ->  | H52: =IF($C$4>0,SUM(H13:H51),"") ->  | I52: =IF($C$4>0,SUM(I13:I51),"") ->  | J52: =IF($C$4>0,SUM(J13:J51),"") ->  | L52: =IF($C$4>0,SUM(L13:L51),"") ->  | M52: =IF($C$4>0,SUM(M13:M51),"") ->  | N52: =IF($C$4>0,SUM(N13:N51),"") ->  | P52: =IF($C$4>0,SUM(P13:P51),"") ->  | Q52: =IF($C$4>0,SUM(Q13:Q51),"") ->  | R52: =IF($C$4>0,SUM(R13:R51),"") ->  | T52: =IF(ISERROR(SUM(T13:T51)),"",SUM(T13:T51)) -> 7509.195004 | U52: =IF(ISERROR(SUM(U13:U51)),"",SUM(U13:U51)) -> 1 | V52: =IF(ISERROR(SUM(V13:V51)),"",SUM(V13:V51)) -> 0.007773690263
B54: INCOME
B55: Funds delegated by the LEA | C55: I01 | D55: =IF(ISERROR(INDEX('2024-25 Data'!$B$3:$CA$19,MATCH($C$4,dfenums,0),MATCH("I01 OTHER",'2024-25 Data'!$B$2:$CA$2,0))),"",INDEX('2024-25 Data'!$B$3:$CA$19,MATCH($C$4,dfenums,0),MATCH("I01 OTHER",'2024-25 Data'!$B$2:$CA$2,0))) ->  | E55: =IF(C4>0,D55/(E4-VLOOKUP(C4,'2024-25 Data'!A3:E19,5,0))) -> FALSE | F55: =IF($C$4>0,D55/$D$78) -> FALSE | H55: =IF(ISERROR(INDEX('2024-25 Data'!$B$3:$CA$19,MATCH($H$6,dfenums,0),MATCH("I01 OTHER",'2024-25 Data'!$B$2:$CA$2,0))),"",INDEX('2024-25 Data'!$B$3:$CA$19,MATCH($H$6,dfenums,0),MATCH("I01 OTHER",'2024-25 Data'!$B$2:$CA$2,0))) ->  | I55: =IF(H6>0,H55/(I6-VLOOKUP(H6,'2024-25 Data'!A3:E19,5,0))) -> FALSE | J55: =IF($H$6>0,H55/$H$78) -> FALSE | L55: =IF(ISERROR(INDEX('2024-25 Data'!$B$3:$CA$19,MATCH($L$6,dfenums,0),MATCH("I01 OTHER",'2024-25 Data'!$B$2:$CA$2,0))),"",INDEX('2024-25 Data'!$B$3:$CA$19,MATCH($L$6,dfenums,0),MATCH("I01 OTHER",'2024-25 Data'!$B$2:$CA$2,0))) ->  | M55: =IF(L6>0,L55/(M6-VLOOKUP(L6,'2024-25 Data'!A3:E19,5,0))) -> FALSE | N55: =IF($L$6>0,L55/$L$78) -> FALSE | P55: =IF(ISERROR(INDEX('2024-25 Data'!$B$3:$CA$19,MATCH($P$6,dfenums,0),MATCH("I01 OTHER",'2024-25 Data'!$B$2:$CA$2,0))),"",INDEX('2024-25 Data'!$B$3:$CA$19,MATCH($P$6,dfenums,0),MATCH("I01 OTHER",'2024-25 Data'!$B$2:$CA$2,0))) ->  | Q55: =IF(P6>0,P55/(Q6-VLOOKUP(P6,'2024-25 Data'!A3:E19,5,0))) -> FALSE | R55: =IF($P$6>0,P55/$P$78) -> FALSE | T55: =IF(ISERROR(SUM('2024-25 Data'!AS$3:AS$19)/SUM('2024-25 Data'!$C$3:$D$19)),"",SUM('2024-25 Data'!AS$3:AS$19)/SUM('2024-25 Data'!$C$3:$D$19)) -> -5000.543787 | U55: =IF(ISERROR(T55/$T$78),"",T55/$T$78) -> 0.005176677197
B56: Funding for sixth form students | C56: I02 | D56: =IF(ISERROR(INDEX('2024-25 Data'!$B$3:$CA$19,MATCH($C$4,dfenums,0),MATCH($C56,'2024-25 Data'!$B$2:$CA$2,0))),"",INDEX('2024-25 Data'!$B$3:$CA$19,MATCH($C$4,dfenums,0),MATCH($C56,'2024-25 Data'!$B$2:$CA$2,0))) ->  | E56: =IF(ISERROR(IF($C$4>0,D56/$F$4)),0,IF($C$4>0,D56/$F$4)) -> FALSE | F56: =IF($C$4>0,D56/$D$78) -> FALSE | H56: =IF(ISERROR(INDEX('2024-25 Data'!$B$3:$CA$19,MATCH($H$6,dfenums,0),MATCH($C56,'2024-25 Data'!$B$2:$CA$2,0))),"",INDEX('2024-25 Data'!$B$3:$CA$19,MATCH($H$6,dfenums,0),MATCH($C56,'2024-25 Data'!$B$2:$CA$2,0))) ->  | I56: =IFERROR(IF($H$6>0,H56/$J$6),0) -> FALSE | J56: =IF($H$6>0,H56/$H$78) -> FALSE | L56: =IF(ISERROR(INDEX('2024-25 Data'!$B$3:$CA$19,MATCH($L$6,dfenums,0),MATCH($C56,'2024-25 Data'!$B$2:$CA$2,0))),"",INDEX('2024-25 Data'!$B$3:$CA$19,MATCH($L$6,dfenums,0),MATCH($C56,'2024-25 Data'!$B$2:$CA$2,0))) ->  | M56: =IFERROR(IF($L$6>0,L56/$N$6),0) -> FALSE | N56: =IF($L$6>0,L56/$L$78) -> FALSE | P56: =IF(ISERROR(INDEX('2024-25 Data'!$B$3:$CA$19,MATCH($P$6,dfenums,0),MATCH($C56,'2024-25 Data'!$B$2:$CA$2,0))),"",INDEX('2024-25 Data'!$B$3:$CA$19,MATCH($P$6,dfenums,0),MATCH($C56,'2024-25 Data'!$B$2:$CA$2,0))) ->  | Q56: =IFERROR(IF($P$6>0,P56/$R$6),0) -> FALSE | R56: =IF($P$6>0,P56/$P$78) -> FALSE | T56: =IF(ISERROR(SUM('2024-25 Data'!AW$3:AW$19)/SUM('2024-25 Data'!$D$3:$D$19)),"",SUM('2024-25 Data'!AW$3:AW$19)/SUM('2024-25 Data'!$D$3:$D$19)) -> -959566.2812 | U56: =IF(ISERROR(T56/$T$78),"",T56/$T$78) -> 0.9933649417
B57: Notional SEN budget | C57: I01 | D57: =IF(ISERROR(INDEX('2024-25 Data'!$B$3:$CA$19,MATCH($C$4,dfenums,0),MATCH($B57,'2024-25 Data'!$B$2:$CA$2,0))),"",INDEX('2024-25 Data'!$B$3:$CA$19,MATCH($C$4,dfenums,0),MATCH($B57,'2024-25 Data'!$B$2:$CA$2,0))) ->  | E57: =IF($C$4>0,D57/$E$4) -> FALSE | F57: =IF($C$4>0,D57/$D$78) -> FALSE | H57: =IF(ISERROR(INDEX('2024-25 Data'!$B$3:$CA$19,MATCH($H$6,dfenums,0),MATCH($B57,'2024-25 Data'!$B$2:$CA$2,0))),"",INDEX('2024-25 Data'!$B$3:$CA$19,MATCH($H$6,dfenums,0),MATCH($B57,'2024-25 Data'!$B$2:$CA$2,0))) ->  | I57: =IF($P$6>0,H57/$I$6) -> FALSE | J57: =IF($H$6>0,H57/$H$78) -> FALSE | L57: =IF(ISERROR(INDEX('2024-25 Data'!$B$3:$CA$19,MATCH($L$6,dfenums,0),MATCH($B57,'2024-25 Data'!$B$2:$CA$2,0))),"",INDEX('2024-25 Data'!$B$3:$CA$19,MATCH($L$6,dfenums,0),MATCH($B57,'2024-25 Data'!$B$2:$CA$2,0))) ->  | M57: =IF($P$6>0,L57/$M$6) -> FALSE | N57: =IF($L$6>0,L57/$L$78) -> FALSE | P57: =IF(ISERROR(INDEX('2024-25 Data'!$B$3:$CA$19,MATCH($P$6,dfenums,0),MATCH($B57,'2024-25 Data'!$B$2:$CA$2,0))),"",INDEX('2024-25 Data'!$B$3:$CA$19,MATCH($P$6,dfenums,0),MATCH($B57,'2024-25 Data'!$B$2:$CA$2,0))) ->  | Q57: =IF($P$6>0,P57/$Q$6) -> FALSE | R57: =IF($P$6>0,P57/$P$78) -> FALSE | T57: =IF(ISERROR(SUM('2024-25 Data'!AT$3:AT$19)/SUM('2024-25 Data'!$C$3:$D$19)),"",SUM('2024-25 Data'!AT$3:AT$19)/SUM('2024-25 Data'!$C$3:$D$19)) -> -682.9169147 | U57: 0.0007069711957
B58: SRP Funding | C58: I01 & I03 | D58: =IF(ISERROR(INDEX('2024-25 Data'!$B$3:$CA$19,MATCH($C$4,dfenums,0),MATCH("Unit Funding",'2024-25 Data'!$B$2:$CA$2,0))),"",INDEX('2024-25 Data'!$B$3:$CA$19,MATCH($C$4,dfenums,0),MATCH("Unit Funding",'2024-25 Data'!$B$2:$CA$2,0))) ->  | E58: Meaningful comparison is not possible in this area
B59: High Needs Pupils Funding | C59: I01 & I03 | D59: =IF(ISERROR(INDEX('2024-25 Data'!$B$3:$CA$19,MATCH($C$4,dfenums,0),MATCH("HNP Funding",'2024-25 Data'!$B$2:$CA$2,0))),"",INDEX('2024-25 Data'!$B$3:$CA$19,MATCH($C$4,dfenums,0),MATCH("HNP Funding",'2024-25 Data'!$B$2:$CA$2,0))) -> 
B60: Funding for minority ethnic pupils | C60: I04 | D60: =IF(ISERROR(INDEX('2024-25 Data'!$B$3:$CA$19,MATCH($C$4,dfenums,0),MATCH($C60,'2024-25 Data'!$B$2:$CA$2,0))),"",INDEX('2024-25 Data'!$B$3:$CA$19,MATCH($C$4,dfenums,0),MATCH($C60,'2024-25 Data'!$B$2:$CA$2,0))) ->  | E60: =IF($C$4>0,D60/($E$4+$F$4),"") ->  | F60: =IF($C$4>0,D60/$D$78,"") ->  | H60: =IF(ISERROR(INDEX('2024-25 Data'!$B$3:$CA$19,MATCH($H$6,dfenums,0),MATCH($C60,'2024-25 Data'!$B$2:$CA$2,0))),"",INDEX('2024-25 Data'!$B$3:$CA$19,MATCH($H$6,dfenums,0),MATCH($C60,'2024-25 Data'!$B$2:$CA$2,0))) ->  | I60: =IF($H$6>0,H60/($I$6+$J$6),"") ->  | J60: =IF($H$6>0,H60/$H$78,"") ->  | L60: =IF(ISERROR(INDEX('2024-25 Data'!$B$3:$CA$19,MATCH($L$6,dfenums,0),MATCH($C60,'2024-25 Data'!$B$2:$CA$2,0))),"",INDEX('2024-25 Data'!$B$3:$CA$19,MATCH($L$6,dfenums,0),MATCH($C60,'2024-25 Data'!$B$2:$CA$2,0))) ->  | M60: =IF($L$6>0,L60/($M$6+$N$6),"") ->  | N60: =IF($L$6>0,L60/$L$78,"") ->  | P60: =IF(ISERROR(INDEX('2024-25 Data'!$B$3:$CA$19,MATCH($P$6,dfenums,0),MATCH($C60,'2024-25 Data'!$B$2:$CA$2,0))),"",INDEX('2024-25 Data'!$B$3:$CA$19,MATCH($P$6,dfenums,0),MATCH($C60,'2024-25 Data'!$B$2:$CA$2,0))) ->  | Q60: =IF($P$6>0,P60/($Q$6+$R$6),"") ->  | R60: =IF($P$6>0,P60/$P$78,"") ->  | T60: =IF(ISERROR(SUM('2024-25 Data'!AX$3:AX$19)/SUM('2024-25 Data'!$C$3:$D$19)),"",SUM('2024-25 Data'!AX$3:AX$19)/SUM('2024-25 Data'!$C$3:$D$19)) -> -2.252973926 | U60: 2.332330091e-06
B61: Pupil Premium | C61: I05 | D61: =IF(ISERROR(INDEX('2024-25 Data'!$B$3:$CA$19,MATCH($C$4,dfenums,0),MATCH($C61,'2024-25 Data'!$B$2:$CA$2,0))),"",INDEX('2024-25 Data'!$B$3:$CA$19,MATCH($C$4,dfenums,0),MATCH($C61,'2024-25 Data'!$B$2:$CA$2,0))) ->  | E61: =IF($C$4>0,D61/($E$4+$F$4),"") ->  | H61: =IF(ISERROR(INDEX('2024-25 Data'!$B$3:$CA$19,MATCH($H$6,dfenums,0),MATCH($C61,'2024-25 Data'!$B$2:$CA$2,0))),"",INDEX('2024-25 Data'!$B$3:$CA$19,MATCH($H$6,dfenums,0),MATCH($C61,'2024-25 Data'!$B$2:$CA$2,0))) ->  | I61: =IF($H$6>0,H61/($I$6+$J$6),"") ->  | L61: =IF(ISERROR(INDEX('2024-25 Data'!$B$3:$CA$19,MATCH($L$6,dfenums,0),MATCH($C61,'2024-25 Data'!$B$2:$CA$2,0))),"",INDEX('2024-25 Data'!$B$3:$CA$19,MATCH($L$6,dfenums,0),MATCH($C61,'2024-25 Data'!$B$2:$CA$2,0))) ->  | M61: =IF($L$6>0,L61/($M$6+$N$6),"") ->  | P61: =IF(ISERROR(INDEX('2024-25 Data'!$B$3:$CA$19,MATCH($P$6,dfenums,0),MATCH($C61,'2024-25 Data'!$B$2:$CA$2,0))),"",INDEX('2024-25 Data'!$B$3:$CA$19,MATCH($P$6,dfenums,0),MATCH($C61,'2024-25 Data'!$B$2:$CA$2,0))) ->  | Q61: =IF($P$6>0,P61/($Q$6+$R$6),"") ->  | T61: =IF(ISERROR(SUM('2024-25 Data'!AY$3:AY$19)/SUM('2024-25 Data'!$C$3:$D$19)),"",SUM('2024-25 Data'!AY$3:AY$19)/SUM('2024-25 Data'!$C$3:$D$19)) -> -186.0071529 | U61: 0.0001925588552
B62: Other government grants | C62: I06 | D62: =IF(ISERROR(INDEX('2024-25 Data'!$B$3:$CA$19,MATCH($C$4,dfenums,0),MATCH($C62,'2024-25 Data'!$B$2:$CA$2,0))),"",INDEX('2024-25 Data'!$B$3:$CA$19,MATCH($C$4,dfenums,0),MATCH($C62,'2024-25 Data'!$B$2:$CA$2,0))) ->  | H62: =IF(ISERROR(INDEX('2024-25 Data'!$B$3:$CA$19,MATCH($H$6,dfenums,0),MATCH($C62,'2024-25 Data'!$B$2:$CA$2,0))),"",INDEX('2024-25 Data'!$B$3:$CA$19,MATCH($H$6,dfenums,0),MATCH($C62,'2024-25 Data'!$B$2:$CA$2,0))) ->  | L62: =IF(ISERROR(INDEX('2024-25 Data'!$B$3:$CA$19,MATCH($L$6,dfenums,0),MATCH($C62,'2024-25 Data'!$B$2:$CA$2,0))),"",INDEX('2024-25 Data'!$B$3:$CA$19,MATCH($L$6,dfenums,0),MATCH($C62,'2024-25 Data'!$B$2:$CA$2,0))) ->  | P62: =IF(ISERROR(INDEX('2024-25 Data'!$B$3:$CA$19,MATCH($P$6,dfenums,0),MATCH($C62,'2024-25 Data'!$B$2:$CA$2,0))),"",INDEX('2024-25 Data'!$B$3:$CA$19,MATCH($P$6,dfenums,0),MATCH($C62,'2024-25 Data'!$B$2:$CA$2,0))) ->  | T62: =IF(ISERROR(SUM('2024-25 Data'!AZ$3:AZ$19)/SUM('2024-25 Data'!$C$3:$D$19)),"",SUM('2024-25 Data'!AZ$3:AZ$19)/SUM('2024-25 Data'!$C$3:$D$19)) -> -15.61436196 | U62: 1.616434431e-05
B63: Other grants and payments | C63: I07 | D63: =IF(ISERROR(INDEX('2024-25 Data'!$B$3:$CA$19,MATCH($C$4,dfenums,0),MATCH($C63,'2024-25 Data'!$B$2:$CA$2,0))),"",INDEX('2024-25 Data'!$B$3:$CA$19,MATCH($C$4,dfenums,0),MATCH($C63,'2024-25 Data'!$B$2:$CA$2,0))) ->  | H63: =IF(ISERROR(INDEX('2024-25 Data'!$B$3:$CA$19,MATCH($H$6,dfenums,0),MATCH($C63,'2024-25 Data'!$B$2:$CA$2,0))),"",INDEX('2024-25 Data'!$B$3:$CA$19,MATCH($H$6,dfenums,0),MATCH($C63,'2024-25 Data'!$B$2:$CA$2,0))) ->  | L63: =IF(ISERROR(INDEX('2024-25 Data'!$B$3:$CA$19,MATCH($L$6,dfenums,0),MATCH($C63,'2024-25 Data'!$B$2:$CA$2,0))),"",INDEX('2024-25 Data'!$B$3:$CA$19,MATCH($L$6,dfenums,0),MATCH($C63,'2024-25 Data'!$B$2:$CA$2,0))) ->  | P63: =IF(ISERROR(INDEX('2024-25 Data'!$B$3:$CA$19,MATCH($P$6,dfenums,0),MATCH($C63,'2024-25 Data'!$B$2:$CA$2,0))),"",INDEX('2024-25 Data'!$B$3:$CA$19,MATCH($P$6,dfenums,0),MATCH($C63,'2024-25 Data'!$B$2:$CA$2,0))) ->  | T63: =IF(ISERROR(SUM('2024-25 Data'!BA$3:BA$19)/SUM('2024-25 Data'!$C$3:$D$19)),"",SUM('2024-25 Data'!BA$3:BA$19)/SUM('2024-25 Data'!$C$3:$D$19)) -> -73.40423058 | U63: 7.598973688e-05
B64: Income from facilities and services | C64: I08 | D64: =IF(ISERROR(INDEX('2024-25 Data'!$B$3:$CA$19,MATCH($C$4,dfenums,0),MATCH($C64,'2024-25 Data'!$B$2:$CA$2,0))),"",INDEX('2024-25 Data'!$B$3:$CA$19,MATCH($C$4,dfenums,0),MATCH($C64,'2024-25 Data'!$B$2:$CA$2,0))) ->  | E64: =IF($C$4>0,D64/($E$4+$F$4),"") ->  | H64: =IF(ISERROR(INDEX('2024-25 Data'!$B$3:$CA$19,MATCH($H$6,dfenums,0),MATCH($C64,'2024-25 Data'!$B$2:$CA$2,0))),"",INDEX('2024-25 Data'!$B$3:$CA$19,MATCH($H$6,dfenums,0),MATCH($C64,'2024-25 Data'!$B$2:$CA$2,0))) ->  | I64: =IF($H$6>0,H64/($I$6+$J$6),"") ->  | L64: =IF(ISERROR(INDEX('2024-25 Data'!$B$3:$CA$19,MATCH($L$6,dfenums,0),MATCH($C64,'2024-25 Data'!$B$2:$CA$2,0))),"",INDEX('2024-25 Data'!$B$3:$CA$19,MATCH($L$6,dfenums,0),MATCH($C64,'2024-25 Data'!$B$2:$CA$2,0))) ->  | M64: =IF($L$6>0,L64/($M$6+$N$6),"") ->  | P64: =IF(ISERROR(INDEX('2024-25 Data'!$B$3:$CA$19,MATCH($P$6,dfenums,0),MATCH($C64,'2024-25 Data'!$B$2:$CA$2,0))),"",INDEX('2024-25 Data'!$B$3:$CA$19,MATCH($P$6,dfenums,0),MATCH($C64,'2024-25 Data'!$B$2:$CA$2,0))) ->  | Q64: =IF($P$6>0,P64/($Q$6+$R$6),"") ->  | T64: =IF(ISERROR(SUM('2024-25 Data'!BC$3:BC$19)/SUM('2024-25 Data'!$C$3:$D$19)),"",SUM('2024-25 Data'!BC$3:BC$19)/SUM('2024-25 Data'!$C$3:$D$19)) -> -62.89293668 | U64: =IF(ISERROR(T64/$T$78),"",T64/$T$78) -> 6.510820523e-05
B65: Income from facilities and services | C65: I08b | D65: =IF(ISERROR(INDEX('2024-25 Data'!$B$3:$CA$19,MATCH($C$4,dfenums,0),MATCH($C65,'2024-25 Data'!$B$2:$CA$2,0))),"",INDEX('2024-25 Data'!$B$3:$CA$19,MATCH($C$4,dfenums,0),MATCH($C65,'2024-25 Data'!$B$2:$CA$2,0))) ->  | H65: =IF(ISERROR(INDEX('2024-25 Data'!$B$3:$CA$19,MATCH($H$6,dfenums,0),MATCH($C65,'2024-25 Data'!$B$2:$CA$2,0))),"",INDEX('2024-25 Data'!$B$3:$CA$19,MATCH($H$6,dfenums,0),MATCH($C65,'2024-25 Data'!$B$2:$CA$2,0))) ->  | L65: =IF(ISERROR(INDEX('2024-25 Data'!$B$3:$CA$19,MATCH($L$6,dfenums,0),MATCH($C65,'2024-25 Data'!$B$2:$CA$2,0))),"",INDEX('2024-25 Data'!$B$3:$CA$19,MATCH($L$6,dfenums,0),MATCH($C65,'2024-25 Data'!$B$2:$CA$2,0))) ->  | P65: =IF(ISERROR(INDEX('2024-25 Data'!$B$3:$CA$19,MATCH($P$6,dfenums,0),MATCH($C65,'2024-25 Data'!$B$2:$CA$2,0))),"",INDEX('2024-25 Data'!$B$3:$CA$19,MATCH($P$6,dfenums,0),MATCH($C65,'2024-25 Data'!$B$2:$CA$2,0))) ->  | T65: =IF(ISERROR(SUM('2024-25 Data'!BC$3:BC$19)/SUM('2024-25 Data'!$C$3:$D$19)),"",SUM('2024-25 Data'!BC$3:BC$19)/SUM('2024-25 Data'!$C$3:$D$19)) -> -62.89293668 | U65: 6.510820523e-05
B66: Income from catering | C66: I09 | D66: =IF(ISERROR(INDEX('2024-25 Data'!$B$3:$CA$19,MATCH($C$4,dfenums,0),MATCH($C66,'2024-25 Data'!$B$2:$CA$2,0))),"",INDEX('2024-25 Data'!$B$3:$CA$19,MATCH($C$4,dfenums,0),MATCH($C66,'2024-25 Data'!$B$2:$CA$2,0))) ->  | H66: =IF(ISERROR(INDEX('2024-25 Data'!$B$3:$CA$19,MATCH($H$6,dfenums,0),MATCH($C66,'2024-25 Data'!$B$2:$CA$2,0))),"",INDEX('2024-25 Data'!$B$3:$CA$19,MATCH($H$6,dfenums,0),MATCH($C66,'2024-25 Data'!$B$2:$CA$2,0))) ->  | L66: =IF(ISERROR(INDEX('2024-25 Data'!$B$3:$CA$19,MATCH($L$6,dfenums,0),MATCH($C66,'2024-25 Data'!$B$2:$CA$2,0))),"",INDEX('2024-25 Data'!$B$3:$CA$19,MATCH($L$6,dfenums,0),MATCH($C66,'2024-25 Data'!$B$2:$CA$2,0))) ->  | P66: =IF(ISERROR(INDEX('2024-25 Data'!$B$3:$CA$19,MATCH($P$6,dfenums,0),MATCH($C66,'2024-25 Data'!$B$2:$CA$2,0))),"",INDEX('2024-25 Data'!$B$3:$CA$19,MATCH($P$6,dfenums,0),MATCH($C66,'2024-25 Data'!$B$2:$CA$2,0))) ->  | T66: =IF(ISERROR(SUM('2024-25 Data'!BD$3:BD$19)/SUM('2024-25 Data'!$C$3:$D$19)),"",SUM('2024-25 Data'!BD$3:BD$19)/SUM('2024-25 Data'!$C$3:$D$19)) -> -94.78462621 | U66: 9.8123211e-05
B67: Receipts from supply teachers insurance claims | C67: I10 | D67: =IF(ISERROR(INDEX('2024-25 Data'!$B$3:$CA$19,MATCH($C$4,dfenums,0),MATCH($C67,'2024-25 Data'!$B$2:$CA$2,0))),"",INDEX('2024-25 Data'!$B$3:$CA$19,MATCH($C$4,dfenums,0),MATCH($C67,'2024-25 Data'!$B$2:$CA$2,0))) ->  | H67: =IF(ISERROR(INDEX('2024-25 Data'!$B$3:$CA$19,MATCH($H$6,dfenums,0),MATCH($C67,'2024-25 Data'!$B$2:$CA$2,0))),"",INDEX('2024-25 Data'!$B$3:$CA$19,MATCH($H$6,dfenums,0),MATCH($C67,'2024-25 Data'!$B$2:$CA$2,0))) ->  | L67: =IF(ISERROR(INDEX('2024-25 Data'!$B$3:$CA$19,MATCH($L$6,dfenums,0),MATCH($C67,'2024-25 Data'!$B$2:$CA$2,0))),"",INDEX('2024-25 Data'!$B$3:$CA$19,MATCH($L$6,dfenums,0),MATCH($C67,'2024-25 Data'!$B$2:$CA$2,0))) ->  | P67: =IF(ISERROR(INDEX('2024-25 Data'!$B$3:$CA$19,MATCH($P$6,dfenums,0),MATCH($C67,'2024-25 Data'!$B$2:$CA$2,0))),"",INDEX('2024-25 Data'!$B$3:$CA$19,MATCH($P$6,dfenums,0),MATCH($C67,'2024-25 Data'!$B$2:$CA$2,0))) ->  | T67: =IF(ISERROR(SUM('2024-25 Data'!BE$3:BE$19)/SUM('2024-25 Data'!$C$3:$D$19)),"",SUM('2024-25 Data'!BE$3:BE$19)/SUM('2024-25 Data'!$C$3:$D$19)) -> 0 | U67: 0
B68: Receipts from other insurance claims | C68: I11 | D68: =IF(ISERROR(INDEX('2024-25 Data'!$B$3:$CA$19,MATCH($C$4,dfenums,0),MATCH($C68,'2024-25 Data'!$B$2:$CA$2,0))),"",INDEX('2024-25 Data'!$B$3:$CA$19,MATCH($C$4,dfenums,0),MATCH($C68,'2024-25 Data'!$B$2:$CA$2,0))) ->  | H68: =IF(ISERROR(INDEX('2024-25 Data'!$B$3:$CA$19,MATCH($H$6,dfenums,0),MATCH($C68,'2024-25 Data'!$B$2:$CA$2,0))),"",INDEX('2024-25 Data'!$B$3:$CA$19,MATCH($H$6,dfenums,0),MATCH($C68,'2024-25 Data'!$B$2:$CA$2,0))) ->  | L68: =IF(ISERROR(INDEX('2024-25 Data'!$B$3:$CA$19,MATCH($L$6,dfenums,0),MATCH($C68,'2024-25 Data'!$B$2:$CA$2,0))),"",INDEX('2024-25 Data'!$B$3:$CA$19,MATCH($L$6,dfenums,0),MATCH($C68,'2024-25 Data'!$B$2:$CA$2,0))) ->  | P68: =IF(ISERROR(INDEX('2024-25 Data'!$B$3:$CA$19,MATCH($P$6,dfenums,0),MATCH($C68,'2024-25 Data'!$B$2:$CA$2,0))),"",INDEX('2024-25 Data'!$B$3:$CA$19,MATCH($P$6,dfenums,0),MATCH($C68,'2024-25 Data'!$B$2:$CA$2,0))) ->  | T68: =IF(ISERROR(SUM('2024-25 Data'!BF$3:BF$19)/SUM('2024-25 Data'!$C$3:$D$19)),"",SUM('2024-25 Data'!BF$3:BF$19)/SUM('2024-25 Data'!$C$3:$D$19)) -> -10.91317439 | U68: 1.129756751e-05
B69: Income from contributions to visits etc. | C69: I12 | D69: =IF(ISERROR(INDEX('2024-25 Data'!$B$3:$CA$19,MATCH($C$4,dfenums,0),MATCH($C69,'2024-25 Data'!$B$2:$CA$2,0))),"",INDEX('2024-25 Data'!$B$3:$CA$19,MATCH($C$4,dfenums,0),MATCH($C69,'2024-25 Data'!$B$2:$CA$2,0))) ->  | H69: =IF(ISERROR(INDEX('2024-25 Data'!$B$3:$CA$19,MATCH($H$6,dfenums,0),MATCH($C69,'2024-25 Data'!$B$2:$CA$2,0))),"",INDEX('2024-25 Data'!$B$3:$CA$19,MATCH($H$6,dfenums,0),MATCH($C69,'2024-25 Data'!$B$2:$CA$2,0))) ->  | L69: =IF(ISERROR(INDEX('2024-25 Data'!$B$3:$CA$19,MATCH($L$6,dfenums,0),MATCH($C69,'2024-25 Data'!$B$2:$CA$2,0))),"",INDEX('2024-25 Data'!$B$3:$CA$19,MATCH($L$6,dfenums,0),MATCH($C69,'2024-25 Data'!$B$2:$CA$2,0))) ->  | P69: =IF(ISERROR(INDEX('2024-25 Data'!$B$3:$CA$19,MATCH($P$6,dfenums,0),MATCH($C69,'2024-25 Data'!$B$2:$CA$2,0))),"",INDEX('2024-25 Data'!$B$3:$CA$19,MATCH($P$6,dfenums,0),MATCH($C69,'2024-25 Data'!$B$2:$CA$2,0))) ->  | T69: =IF(ISERROR(SUM('2024-25 Data'!BG$3:BG$19)/SUM('2024-25 Data'!$C$3:$D$19)),"",SUM('2024-25 Data'!BG$3:BG$19)/SUM('2024-25 Data'!$C$3:$D$19)) -> -91.94069972 | U69: 9.517911332e-05
B70: Donations and/or voluntary funds | C70: I13 | D70: =IF(ISERROR(INDEX('2024-25 Data'!$B$3:$CA$19,MATCH($C$4,dfenums,0),MATCH($C70,'2024-25 Data'!$B$2:$CA$2,0))),"",INDEX('2024-25 Data'!$B$3:$CA$19,MATCH($C$4,dfenums,0),MATCH($C70,'2024-25 Data'!$B$2:$CA$2,0))) ->  | H70: =IF(ISERROR(INDEX('2024-25 Data'!$B$3:$CA$19,MATCH($H$6,dfenums,0),MATCH($C70,'2024-25 Data'!$B$2:$CA$2,0))),"",INDEX('2024-25 Data'!$B$3:$CA$19,MATCH($H$6,dfenums,0),MATCH($C70,'2024-25 Data'!$B$2:$CA$2,0))) ->  | L70: =IF(ISERROR(INDEX('2024-25 Data'!$B$3:$CA$19,MATCH($L$6,dfenums,0),MATCH($C70,'2024-25 Data'!$B$2:$CA$2,0))),"",INDEX('2024-25 Data'!$B$3:$CA$19,MATCH($L$6,dfenums,0),MATCH($C70,'2024-25 Data'!$B$2:$CA$2,0))) ->  | P70: =IF(ISERROR(INDEX('2024-25 Data'!$B$3:$CA$19,MATCH($P$6,dfenums,0),MATCH($C70,'2024-25 Data'!$B$2:$CA$2,0))),"",INDEX('2024-25 Data'!$B$3:$CA$19,MATCH($P$6,dfenums,0),MATCH($C70,'2024-25 Data'!$B$2:$CA$2,0))) ->  | T70: =IF(ISERROR(SUM('2024-25 Data'!BH$3:BH$19)/SUM('2024-25 Data'!$C$3:$D$19)),"",SUM('2024-25 Data'!BH$3:BH$19)/SUM('2024-25 Data'!$C$3:$D$19)) -> -100.5393224 | U70: 0.000104080604
B71: Pupil focussed extended school funding &/or grants | C71: I15 | D71: =IF(ISERROR(INDEX('2024-25 Data'!$B$3:$CA$19,MATCH($C$4,dfenums,0),MATCH($C71,'2024-25 Data'!$B$2:$CA$2,0))),"",INDEX('2024-25 Data'!$B$3:$CA$19,MATCH($C$4,dfenums,0),MATCH($C71,'2024-25 Data'!$B$2:$CA$2,0))) ->  | H71: =IF(ISERROR(INDEX('2024-25 Data'!$B$3:$CA$19,MATCH($H$6,dfenums,0),MATCH($C71,'2024-25 Data'!$B$2:$CA$2,0))),"",INDEX('2024-25 Data'!$B$3:$CA$19,MATCH($H$6,dfenums,0),MATCH($C71,'2024-25 Data'!$B$2:$CA$2,0))) ->  | L71: =IF(ISERROR(INDEX('2024-25 Data'!$B$3:$CA$19,MATCH($L$6,dfenums,0),MATCH($C71,'2024-25 Data'!$B$2:$CA$2,0))),"",INDEX('2024-25 Data'!$B$3:$CA$19,MATCH($L$6,dfenums,0),MATCH($C71,'2024-25 Data'!$B$2:$CA$2,0))) ->  | P71: =IF(ISERROR(INDEX('2024-25 Data'!$B$3:$CA$19,MATCH($P$6,dfenums,0),MATCH($C71,'2024-25 Data'!$B$2:$CA$2,0))),"",INDEX('2024-25 Data'!$B$3:$CA$19,MATCH($P$6,dfenums,0),MATCH($C71,'2024-25 Data'!$B$2:$CA$2,0))) ->  | T71: =IF(ISERROR(SUM('2024-25 Data'!BI$3:BI$19)/SUM('2024-25 Data'!$C$3:$D$19)),"",SUM('2024-25 Data'!BI$3:BI$19)/SUM('2024-25 Data'!$C$3:$D$19)) -> 0 | U71: 0
B72: Com focussed extended school funding &/or grants | C72: I16 | D72: =IF(ISERROR(INDEX('2024-25 Data'!$B$3:$CA$19,MATCH($C$4,dfenums,0),MATCH($C72,'2024-25 Data'!$B$2:$CA$2,0))),"",INDEX('2024-25 Data'!$B$3:$CA$19,MATCH($C$4,dfenums,0),MATCH($C72,'2024-25 Data'!$B$2:$CA$2,0))) ->  | H72: =IF(ISERROR(INDEX('2024-25 Data'!$B$3:$CA$19,MATCH($H$6,dfenums,0),MATCH($C72,'2024-25 Data'!$B$2:$CA$2,0))),"",INDEX('2024-25 Data'!$B$3:$CA$19,MATCH($H$6,dfenums,0),MATCH($C72,'2024-25 Data'!$B$2:$CA$2,0))) ->  | L72: =IF(ISERROR(INDEX('2024-25 Data'!$B$3:$CA$19,MATCH($L$6,dfenums,0),MATCH($C72,'2024-25 Data'!$B$2:$CA$2,0))),"",INDEX('2024-25 Data'!$B$3:$CA$19,MATCH($L$6,dfenums,0),MATCH($C72,'2024-25 Data'!$B$2:$CA$2,0))) ->  | P72: =IF(ISERROR(INDEX('2024-25 Data'!$B$3:$CA$19,MATCH($P$6,dfenums,0),MATCH($C72,'2024-25 Data'!$B$2:$CA$2,0))),"",INDEX('2024-25 Data'!$B$3:$CA$19,MATCH($P$6,dfenums,0),MATCH($C72,'2024-25 Data'!$B$2:$CA$2,0))) ->  | T72: =IF(ISERROR(SUM('2024-25 Data'!BJ$3:BJ$19)/SUM('2024-25 Data'!$C$3:$D$19)),"",SUM('2024-25 Data'!BJ$3:BJ$19)/SUM('2024-25 Data'!$C$3:$D$19)) -> 0 | U72: 0
B73: Com focussed extended school facilities income | C73: I17 | D73: =IF(ISERROR(INDEX('2024-25 Data'!$B$3:$CA$19,MATCH($C$4,dfenums,0),MATCH($C73,'2024-25 Data'!$B$2:$CA$2,0))),"",INDEX('2024-25 Data'!$B$3:$CA$19,MATCH($C$4,dfenums,0),MATCH($C73,'2024-25 Data'!$B$2:$CA$2,0))) ->  | H73: =IF(ISERROR(INDEX('2024-25 Data'!$B$3:$CA$19,MATCH($H$6,dfenums,0),MATCH($C73,'2024-25 Data'!$B$2:$CA$2,0))),"",INDEX('2024-25 Data'!$B$3:$CA$19,MATCH($H$6,dfenums,0),MATCH($C73,'2024-25 Data'!$B$2:$CA$2,0))) ->  | L73: =IF(ISERROR(INDEX('2024-25 Data'!$B$3:$CA$19,MATCH($L$6,dfenums,0),MATCH($C73,'2024-25 Data'!$B$2:$CA$2,0))),"",INDEX('2024-25 Data'!$B$3:$CA$19,MATCH($L$6,dfenums,0),MATCH($C73,'2024-25 Data'!$B$2:$CA$2,0))) ->  | P73: =IF(ISERROR(INDEX('2024-25 Data'!$B$3:$CA$19,MATCH($P$6,dfenums,0),MATCH($C73,'2024-25 Data'!$B$2:$CA$2,0))),"",INDEX('2024-25 Data'!$B$3:$CA$19,MATCH($P$6,dfenums,0),MATCH($C73,'2024-25 Data'!$B$2:$CA$2,0))) ->  | T73: =IF(ISERROR(SUM('2024-25 Data'!BK$3:BK$19)/SUM('2024-25 Data'!$C$3:$D$19)),"",SUM('2024-25 Data'!BK$3:BK$19)/SUM('2024-25 Data'!$C$3:$D$19)) -> 0 | U73: 0
B74: Additional Grant for Schools | C74: I18 | D74: =IF(ISERROR(INDEX('2024-25 Data'!$B$3:$CA$19,MATCH($C$4,dfenums,0),MATCH($C74,'2024-25 Data'!$B$2:$CA$2,0))),"",INDEX('2024-25 Data'!$B$3:$CA$19,MATCH($C$4,dfenums,0),MATCH($C74,'2024-25 Data'!$B$2:$CA$2,0))) ->  | H74: =IF(ISERROR(INDEX('2024-25 Data'!$B$3:$CA$19,MATCH($H$6,dfenums,0),MATCH($C74,'2024-25 Data'!$B$2:$CA$2,0))),"",INDEX('2024-25 Data'!$B$3:$CA$19,MATCH($H$6,dfenums,0),MATCH($C74,'2024-25 Data'!$B$2:$CA$2,0))) ->  | L74: =IF(ISERROR(INDEX('2024-25 Data'!$B$3:$CA$19,MATCH($L$6,dfenums,0),MATCH($C74,'2024-25 Data'!$B$2:$CA$2,0))),"",INDEX('2024-25 Data'!$B$3:$CA$19,MATCH($L$6,dfenums,0),MATCH($C74,'2024-25 Data'!$B$2:$CA$2,0))) ->  | P74: =IF(ISERROR(INDEX('2024-25 Data'!$B$3:$CA$19,MATCH($P$6,dfenums,0),MATCH($C74,'2024-25 Data'!$B$2:$CA$2,0))),"",INDEX('2024-25 Data'!$B$3:$CA$19,MATCH($P$6,dfenums,0),MATCH($C74,'2024-25 Data'!$B$2:$CA$2,0))) ->  | T74: =IF(ISERROR(SUM('2024-25 Data'!BL$3:BL$19)/SUM('2024-25 Data'!$C$3:$D$19)),"",SUM('2024-25 Data'!BL$3:BL$19)/SUM('2024-25 Data'!$C$3:$D$19)) -> -4.134607682 | U74: 4.280240354e-06
B75: Covid-19 furloughed Staff | C75: I18A | D75: =IF(ISERROR(INDEX('2024-25 Data'!$B$3:$CA$19,MATCH($C$4,dfenums,0),MATCH($C75,'2024-25 Data'!$B$2:$CA$2,0))),"",INDEX('2024-25 Data'!$B$3:$CA$19,MATCH($C$4,dfenums,0),MATCH($C75,'2024-25 Data'!$B$2:$CA$2,0))) ->  | E75: =IF($C$4>0,D75/($E$4+$F$4),"") ->  | H75: =IF(ISERROR(INDEX('2024-25 Data'!$B$3:$CA$19,MATCH($H$6,dfenums,0),MATCH($C75,'2024-25 Data'!$B$2:$CA$2,0))),"",INDEX('2024-25 Data'!$B$3:$CA$19,MATCH($H$6,dfenums,0),MATCH($C75,'2024-25 Data'!$B$2:$CA$2,0))) ->  | I75: =IF($H$6>0,H75/($I$6+$J$6),"") ->  | L75: =IF(ISERROR(INDEX('2024-25 Data'!$B$3:$CA$19,MATCH($L$6,dfenums,0),MATCH($C75,'2024-25 Data'!$B$2:$CA$2,0))),"",INDEX('2024-25 Data'!$B$3:$CA$19,MATCH($L$6,dfenums,0),MATCH($C75,'2024-25 Data'!$B$2:$CA$2,0))) ->  | M75: =IF($L$6>0,L75/($M$6+$N$6),"") ->  | P75: =IF(ISERROR(INDEX('2024-25 Data'!$B$3:$CA$19,MATCH($P$6,dfenums,0),MATCH($C75,'2024-25 Data'!$B$2:$CA$2,0))),"",INDEX('2024-25 Data'!$B$3:$CA$19,MATCH($P$6,dfenums,0),MATCH($C75,'2024-25 Data'!$B$2:$CA$2,0))) ->  | Q75: =IF($P$6>0,P75/($Q$6+$R$6),"") ->  | T75: =IF(ISERROR(SUM('2024-25 Data'!BM$3:BM$19)/SUM('2024-25 Data'!$C$3:$D$19)),"",SUM('2024-25 Data'!BM$3:BM$19)/SUM('2024-25 Data'!$C$3:$D$19)) -> 0 | U75: =IF(ISERROR(T75/$T$78),"",T75/$T$78) -> 0
B76: Covid-19 any other Covid-19 related grant | C76: I18B | D76: =IF(ISERROR(INDEX('2024-25 Data'!$B$3:$CA$19,MATCH($C$4,dfenums,0),MATCH($C76,'2024-25 Data'!$B$2:$CA$2,0))),"",INDEX('2024-25 Data'!$B$3:$CA$19,MATCH($C$4,dfenums,0),MATCH($C76,'2024-25 Data'!$B$2:$CA$2,0))) ->  | E76: =IF($C$4>0,D76/($E$4+$F$4),"") ->  | H76: =IF(ISERROR(INDEX('2024-25 Data'!$B$3:$CA$19,MATCH($H$6,dfenums,0),MATCH($C76,'2024-25 Data'!$B$2:$CA$2,0))),"",INDEX('2024-25 Data'!$B$3:$CA$19,MATCH($H$6,dfenums,0),MATCH($C76,'2024-25 Data'!$B$2:$CA$2,0))) ->  | I76: =IF($H$6>0,H76/($I$6+$J$6),"") ->  | L76: =IF(ISERROR(INDEX('2024-25 Data'!$B$3:$CA$19,MATCH($L$6,dfenums,0),MATCH($C76,'2024-25 Data'!$B$2:$CA$2,0))),"",INDEX('2024-25 Data'!$B$3:$CA$19,MATCH($L$6,dfenums,0),MATCH($C76,'2024-25 Data'!$B$2:$CA$2,0))) ->  | M76: =IF($L$6>0,L76/($M$6+$N$6),"") ->  | P76: =IF(ISERROR(INDEX('2024-25 Data'!$B$3:$CA$19,MATCH($P$6,dfenums,0),MATCH($C76,'2024-25 Data'!$B$2:$CA$2,0))),"",INDEX('2024-25 Data'!$B$3:$CA$19,MATCH($P$6,dfenums,0),MATCH($C76,'2024-25 Data'!$B$2:$CA$2,0))) ->  | Q76: =IF($P$6>0,P76/($Q$6+$R$6),"") ->  | T76: =IF(ISERROR(SUM('2024-25 Data'!BN$3:BN$19)/SUM('2024-25 Data'!$C$3:$D$19)),"",SUM('2024-25 Data'!BN$3:BN$19)/SUM('2024-25 Data'!$C$3:$D$19)) -> 0 | U76: =IF(ISERROR(T76/$T$78),"",T76/$T$78) -> 0
B77: Covid-19 £1bn package | C77: I18C | D77: =IF(ISERROR(INDEX('2024-25 Data'!$B$3:$CA$19,MATCH($C$4,dfenums,0),MATCH($C77,'2024-25 Data'!$B$2:$CA$2,0))),"",INDEX('2024-25 Data'!$B$3:$CA$19,MATCH($C$4,dfenums,0),MATCH($C77,'2024-25 Data'!$B$2:$CA$2,0))) ->  | H77: =IF(ISERROR(INDEX('2024-25 Data'!$B$3:$CA$19,MATCH($H$6,dfenums,0),MATCH($C77,'2024-25 Data'!$B$2:$CA$2,0))),"",INDEX('2024-25 Data'!$B$3:$CA$19,MATCH($H$6,dfenums,0),MATCH($C77,'2024-25 Data'!$B$2:$CA$2,0))) ->  | L77: =IF(ISERROR(INDEX('2024-25 Data'!$B$3:$CA$19,MATCH($L$6,dfenums,0),MATCH($C77,'2024-25 Data'!$B$2:$CA$2,0))),"",INDEX('2024-25 Data'!$B$3:$CA$19,MATCH($L$6,dfenums,0),MATCH($C77,'2024-25 Data'!$B$2:$CA$2,0))) ->  | P77: =IF(ISERROR(INDEX('2024-25 Data'!$B$3:$CA$19,MATCH($P$6,dfenums,0),MATCH($C77,'2024-25 Data'!$B$2:$CA$2,0))),"",INDEX('2024-25 Data'!$B$3:$CA$19,MATCH($P$6,dfenums,0),MATCH($C77,'2024-25 Data'!$B$2:$CA$2,0))) ->  | T77: =IF(ISERROR(SUM('2024-25 Data'!BO$3:BO$19)/SUM('2024-25 Data'!$C$3:$D$19)),"",SUM('2024-25 Data'!BO$3:BO$19)/SUM('2024-25 Data'!$C$3:$D$19)) -> -20.46660892 | U77: 2.118750125e-05
B78: Total Income (excluding reserves and high needs) | D78: =IF($C$4>0,SUM(D55:D57)+SUM(D60:D77),"") ->  | E78: =IF($C$4>0,SUM(E55:E77),"") ->  | F78: =IF($C$4>0,SUM(F55:F77),"") ->  | H78: =IF($H$6>0,SUM(H55:H57)+SUM(H60:H77),"") ->  | I78: =IF($H$6>0,SUM(I55:I77),"") ->  | J78: =IF($H$6>0,SUM(J55:J77),"") ->  | L78: =IF($L$6>0,SUM(L55:L57)+SUM(L60:L77),"") ->  | M78: =IF($L$6>0,SUM(M55:M77),"") ->  | N78: =IF($L$6>0,SUM(N55:N77),"") ->  | P78: =IF($P$6>0,SUM(P55:P57)+SUM(P60:P77),"") ->  | Q78: =IF($P$6>0,SUM(Q55:Q77),"") ->  | R78: =IF($P$6>0,SUM(R55:R77),"") ->  | T78: =IF(ISERROR(SUM(T55:T77)),"",SUM(T55:T57)+SUM(T60:T77)) -> -965975.5856 | U78: =IF(ISERROR(SUM(U55:U77)),"",SUM(U55:U57)+SUM(U60:U77)) -> 1

Sheet 2024-25 Data (hidden)
B1: PFI School | C1: =Benchmarking!C1&" School Budget Templates" -> 2024-25 School Budget Templates | D1: KCC Finance & Procurement | F1: ="From "&Benchmarking!C1&" Checking Spreadsheet" -> From 2024-25 Checking Spreadsheet | AS1: Self generating | AT1: KCC Finance & Procurement Minus figure | AU1: Self generating HN12, HN3U, HNOU, HNTU & HNUT | AV1: Self generating From Advances HNMT & HN3M | AW1: =F1 -> From 2024-25 Checking Spreadsheet | BQ1: ="From March 20"&RIGHT(Benchmarking!C1,2)&" Advances" -> From March 2025 Advances | BW1: ="From March 20"&RIGHT(Benchmarking!C1,2)&" Advances" -> From March 2025 Advances
A2: DFE | B2: SCHOOL | C2: 11-16 ROLL | D2: POST-16 ROLL | E2: SRP- ROLL | F2: E01 | G2: E02 | H2: E03 | I2: E04 | J2: E05 | K2: E06 | L2: E07 | M2: E08 | N2: E09 | O2: E10 | P2: E11 | Q2: E12 | R2: E13 | S2: E14 | T2: E15 | U2: E16 | V2: E17 | W2: E18 | X2: E19 | Y2: E20A | Z2: E20B | AA2: E20C | AB2: E20D | AC2: E20E | AD2: E20F | AE2: E20G | AF2: E21 | AG2: E22 | AH2: E23 | AI2: E24 | AJ2: E25 | AK2: E26 | AL2: E27 | AM2: E28 | AN2: E28B | AO2: E29 | AP2: E30 | AQ2: E31 | AR2: E32 | AS2: I01 OTHER | AT2: Notional SEN budget | AU2: Unit Funding | AV2: HNP Funding | AW2: I02 | AX2: I04 | AY2: I05 | AZ2: I06 | BA2: I07 | BB2: I08 | BC2: I08b | BD2: I09 | BE2: I10 | BF2: I11 | BG2: I12 | BH2: I13 | BI2: I15 | BJ2: I16 | BK2: I17 | BL2: I18 | BM2: I18A | BN2: I18B | BO2: I18C | BP2: I01 + I03 | BQ2: HN12 | BR2: HN3U | BS2: HNOU | BT2: HNTU | BU2: HNUT | BV2: AN Total | BW2: HNMT | BX2: HN3M | BY2: AM Total
A3: 4026 | B3: Dartford Science & Technology College | C3: 880 | D3: 0 | E3: 0 | F3: 3866698.66 | G3: 6095.78 | H3: 839209.91 | I3: 241575.93 | J3: 365899.02 | K3: 0 | L3: 5632.32 | M3: 22781.11 | N3: 18614.72 | O3: 1559.86 | P3: 4133.04 | Q3: 158005.2 | R3: 17618.89 | S3: 12761.49 | T3: 13896.61 | U3: 196999.67 | V3: 260715 | W3: 64460.15 | X3: 138941.12 | Y3: 16837.74 | AA3: 41192.95 | AB3: 18363.51 | AC3: 91 | AD3: 1835.37 | AE3: 76258.63 | AF3: 91997.98 | AG3: 26854.73 | AH3: 30914.15 | AI3: 0 | AJ3: 70423.79 | AK3: 65958.82 | AL3: 97345.75 | AM3: 46265.48 | AO3: 0 | AP3: 97243.79 | AQ3: 0 | AR3: 0 | AS3: =BP3-AT3-AU3-AV3 -> -4828684.41 | AT3: -689648.6 | AU3: =BV3 -> 0 | AV3: =BY3 -> -153887.3 | AW3: -761972 | AX3: 0 | AY3: -198964 | AZ3: -1200 | BA3: -114111.75 | BB3: -115702 | BC3: -40000.43 | BD3: 0 | BE3: 0 | BF3: 0 | BG3: 0 | BH3: -37947.48 | BI3: 0 | BJ3: 0 | BK3: 0 | BL3: 0 | BM3: 0 | BN3: 0 | BO3: -12208.75 | BP3: -5672220.31 | BQ3: 0 | BR3: 0 | BS3: 0 | BT3: 0 | BU3: 0 | BV3: =-SUM(BQ3:BU3) -> 0 | BW3: 0 | BX3: 153887.3 | BY3: =-SUM(BW3:BX3) -> -153887.3
A4: 4040 | B4: Northfleet School for Girls | C4: 1289 | D4: 0 | E4: 0 | F4: 5372026.63 | G4: 16500.8 | H4: 1308680.93 | I4: 229502.42 | J4: 480137.44 | K4: 205474.53 | L4: 53985.32 | M4: 56385.85 | N4: 43132.3 | O4: 2116.53 | P4: 44852.04 | Q4: 222538.24 | R4: 19958.61 | S4: 234276.8 | T4: 15461.68 | U4: 152857.25 | V4: 35490 | W4: 32577.38 | X4: 468639.52 | Y4: 51418 | Z4: 3886 | AA4: 25210.68 | AB4: 63226.63 | AC4: 16500.63 | AD4: 14745.39 | AE4: 6080.92 | AF4: 178515.56 | AG4: 30528.79 | AH4: 33797.84 | AI4: 41585.95 | AJ4: 404869.38 | AK4: 179219.86 | AL4: 173990.36 | AM4: 53920.03 | AO4: 10378.42 | AP4: 12651 | AQ4: 0 | AR4: 0 | AS4: -6417749.3 | AT4: -1234685.8 | AU4: 0 | AV4: -33566.94 | AW4: -1296068 | AX4: -4500 | AY4: -389714 | AZ4: -10085.15 | BA4: -141158.78 | BB4: -66736.97 | BC4: -67827.36 | BD4: -405107.73 | BE4: 0 | BF4: -17575.95 | BG4: -149311.87 | BH4: -66845.01 | BI4: 0 | BJ4: 0 | BK4: 0 | BL4: 0 | BM4: 0 | BN4: 0 | BO4: -50662.5 | BP4: -7686002.04 | BQ4: 0 | BR4: 0 | BS4: 0 | BT4: 0 | BU4: 0 | BV4: 0 | BW4: 0 | BX4: 33566.94 | BY4: -33566.94
A5: 4043 | B5: Tunbridge Wells Girls' Grammar School | C5: 1043 | D5: 0 | E5: 0 | F5: 4189301.26 | G5: 0 | H5: 607175.54 | I5: 96021.73 | J5: 418082.5 | K5: 0 | L5: 1702.18 | M5: 14484.88 | N5: 18333.81 | O5: 1537.65 | P5: 33069.6 | Q5: 95270.05 | R5: 43919.44 | S5: 157032.35 | T5: 19272.19 | U5: 164061.32 | V5: 62244 | W5: 49172.14 | X5: 544469.97 | Y5: 11645.8 | Z5: 49541 | AA5: 25495.57 | AB5: 13608.88 | AC5: 31873.35 | AD5: 25163.62 | AE5: 455 | AF5: 112575.63 | AG5: 46830.63 | AH5: 28178.25 | AI5: 0 | AJ5: 20280.56 | AK5: 17165.12 | AL5: 61382.98 | AM5: 48780.56 | AO5: 0 | AP5: 0 | AQ5: 0 | AR5: 0 | AS5: -4575315.511 | AT5: -393436.0692 | AU5: 0 | AV5: -93671.27 | AW5: -1421889 | AX5: 0 | AY5: -22020 | AZ5: -4742.57 | BA5: -31502.71 | BB5: 0 | BC5: -4770.48 | BD5: -15000 | BE5: 0 | BF5: -13412.26 | BG5: 0 | BH5: -471459 | BI5: 0 | BJ5: 0 | BK5: 0 | BL5: 0 | BM5: 0 | BN5: 0 | BO5: -3034.38 | BP5: -5062422.85 | BQ5: 0 | BR5: 0 | BS5: 0 | BT5: 0 | BU5: 0 | BV5: 0 | BW5: 0 | BX5: 93671.27 | BY5: -93671.27
A6: 4045 | B6: Tunbridge Wells Grammar School for Boys | C6: 1736 | D6: 0 | E6: 0 | F6: 6322170.51 | G6: 0 | H6: 895781.63 | I6: 143744.73 | J6: 805102.54 | K6: 0 | L6: 37547.96 | M6: 93832.05 | N6: 17325.5 | O6: 2797.92 | P6: 8240.64 | Q6: 261591.12 | R6: 37342.53 | S6: 310518.36 | T6: 20294.46 | U6: 365423.65 | V6: 556374 | W6: 50825.56 | X6: 823944.33 | Y6: 51430.94 | AB6: 25732.59 | AC6: 99327.8 | AD6: 78847.49 | AE6: 4252.5 | AF6: 191688.77 | AG6: 75943.59 | AH6: 46840.68 | AI6: 766.66 | AJ6: 45864.97 | AK6: 133864.89 | AL6: 101559.34 | AM6: 74283.75 | AO6: 46777.84 | AP6: 632611.83 | AQ6: 0 | AR6: 0 | AS6: -8899425.227 | AT6: -813690.6331 | AU6: 0 | AV6: -11632.4 | AW6: -1819972 | AX6: 0 | AY6: -87140 | AZ6: -28112.37 | BA6: -3727.5 | BB6: -113713.8 | BC6: -55665.25 | BD6: -25000 | BE6: 0 | BF6: 0 | BG6: -516313.58 | BH6: -146965.2 | BI6: 0 | BJ6: 0 | BK6: 0 | BL6: 0 | BM6: 0 | BN6: 0 | BO6: -11076.88 | BP6: -9724748.26 | BQ6: 0 | BR6: 0 | BS6: 0 | BT6: 0 | BU6: 0 | BV6: 0 | BW6: 0 | BX6: 11632.4 | BY6: -11632.4
A7: 4109 | B7: Dover Grammar School for Girls | C7: 878 | D7: 0 | E7: 0 | F7: 3903898.49 | G7: 8125.48 | H7: 488850.48 | I7: 192652.64 | J7: 348637.14 | K7: 0 | L7: 11158.62 | M7: 22924.73 | N7: 13235.65 | O7: 1340.67 | P7: 28509.36 | Q7: 60833.4 | R7: 18630.75 | S7: 13664.1 | T7: 14615.69 | U7: 85600.71 | V7: 98826 | W7: 25595.03 | X7: 205431.14 | Y7: 7920 | Z7: 9003.06 | AA7: 549 | AB7: 55684.46 | AC7: 6790.93 | AD7: 2349.7 | AE7: 8113.88 | AF7: 114924.62 | AG7: 29484.02 | AH7: 23145.19 | AI7: 0 | AJ7: 62373.85 | AK7: 36919 | AL7: 73771.79 | AM7: 43537.37 | AO7: 0 | AP7: 12500 | AQ7: 0 | AR7: 0 | AS7: -4007984.264 | AT7: -417524.5957 | AU7: 0 | AV7: -37500.31 | AW7: -1115064 | AX7: 0 | AY7: -130082 | AZ7: -11599.5 | BA7: -23339.03 | BB7: 0 | BC7: -12211.43 | BD7: 0 | BE7: 0 | BF7: -22116.9 | BG7: -21065.65 | BH7: -46442.09 | BI7: 0 | BJ7: 0 | BK7: 0 | BL7: 0 | BM7: 0 | BN7: 0 | BO7: -15943.13 | BP7: -4463009.17 | BQ7: 0 | BR7: 0 | BS7: 0 | BT7: 0 | BU7: 0 | BV7: 0 | BW7: 0 | BX7: 37500.31 | BY7: -37500.31
A8: 4522 | B8: Maidstone Grammar School | C8: 1411 | D8: 0 | E8: 0 | F8: 5365713.27 | G8: 3570.73 | H8: 798459.22 | I8: 217682.85 | J8: 457517.33 | K8: 0 | L8: 24182.55 | M8: 41628.73 | N8: 27631.39 | O8: 2120.55 | P8: 45279.84 | Q8: 324507.3 | R8: 71534.39 | S8: 178603.18 | T8: 36673.02 | U8: 184931.69 | V8: 48048 | W8: 52632.45 | X8: 636319.37 | Y8: 32499.59 | AA8: 47237.06 | AB8: 71289.64 | AC8: 28223.64 | AD8: 7030.47 | AE8: 10783.02 | AF8: 208909.19 | AG8: 27365.97 | AH8: 57572.59 | AI8: 95444.5 | AJ8: 419008.58 | AK8: 33418.09 | AL8: 42340.43 | AM8: 55689.9 | AO8: 0 | AP8: 483330.85 | AQ8: 0 | AR8: 0 | AS8: -6241862.816 | AT8: -590697.054 | AU8: 0 | AV8: -2242.95 | AW8: -1971036 | AX8: 0 | AY8: -84000 | AZ8: -15485.15 | BA8: 0 | BB8: -93860.45 | BC8: -46334.07 | BD8: -377131.53 | BE8: 0 | BF8: -11228.04 | BG8: -384382.63 | BH8: -201915.37 | BI8: 0 | BJ8: 0 | BK8: 0 | BL8: 0 | BM8: 0 | BN8: 0 | BO8: -5589.13 | BP8: -6834802.82 | BQ8: 0 | BR8: 0 | BS8: 0 | BT8: 0 | BU8: 0 | BV8: 0 | BW8: 0 | BX8: 2242.95 | BY8: -2242.95
A9: 4523 | B9: Maidstone Grammar School for Girls | C9: 1252 | D9: 0 | E9: 0 | F9: 4741126.86 | G9: 0 | H9: 675269.8 | I9: 105713.97 | J9: 508810.64 | K9: 0 | L9: 12088.78 | M9: 63384.49 | N9: 19709.89 | O9: 1790.91 | P9: 38382.6 | Q9: 51471.14 | R9: 11624.44 | S9: 218629.59 | T9: 77169.68 | U9: 204967.18 | V9: 44772 | W9: 51018.29 | X9: 319078.14 | Y9: 9396 | Z9: 7471.09 | AA9: 1584 | AB9: 35369.03 | AC9: 39338.78 | AD9: 5291.15 | AE9: 13034.78 | AF9: 174931.15 | AG9: 75275.94 | AH9: 32260.11 | AI9: 316715.66 | AJ9: 42367.57 | AK9: 177958.92 | AL9: 53657.94 | AM9: 47161.61 | AO9: 0 | AP9: 749870.24 | AQ9: 0 | AR9: 0 | AS9: -5414991.192 | AT9: -497820.7884 | AU9: 0 | AV9: -37283.02 | AW9: -1861322 | AX9: 0 | AY9: -99904.5 | AZ9: -3542.57 | BA9: -254808.91 | BB9: -406311.01 | BD9: -16303.69 | BE9: 0 | BF9: -7139.14 | BG9: -138252.57 | BH9: -11448.57 | BI9: 0 | BJ9: 0 | BK9: 0 | BL9: 0 | BM9: 0 | BN9: 0 | BO9: -7321.25 | BP9: -5950095 | BQ9: 0 | BR9: 0 | BS9: 0 | BT9: 0 | BU9: 0 | BV9: 0 | BW9: 0 | BX9: 37283.02 | BY9: -37283.02
A10: 4534 | B10: Simon Langton Girls' Grammar School | C10: 1255 | D10: 0 | E10: 0 | F10: 5260947.33 | G10: 9652.03 | H10: 711811.52 | I10: 138707.58 | J10: 504774.53 | K10: 108682.95 | L10: 45681.87 | M10: 32494.07 | N10: 32744.23 | O10: 1790.91 | P10: 5943 | Q10: 38903.85 | R10: 42955.96 | S10: 135707.7 | T10: 35280.24 | U10: 166828.02 | V10: 274663.56 | W10: 49025.71 | X10: 494380.52 | Y10: 10341.67 | AA10: 22089.48 | AB10: 56685.3 | AC10: 3098.52 | AD10: 14495.87 | AE10: 15525.85 | AF10: 142136.36 | AG10: 34169.38 | AH10: 32655.27 | AI10: 39375.74 | AJ10: 301816.56 | AK10: 2490 | AL10: 46398 | AM10: 52809.09 | AO10: 0 | AP10: 41462.51 | AQ10: 0 | AR10: 0 | AS10: -5590327.332 | AT10: -492960.6679 | AU10: 0 | AV10: -14477.22 | AW10: -1986493.8 | AX10: 0 | AY10: -103650 | AZ10: -24708.22 | BA10: -30690 | BB10: -32521.8 | BC10: -36462.07 | BD10: -384186.44 | BE10: 0 | BF10: -843 | BG10: 0 | BH10: -352890.83 | BI10: 0 | BJ10: 0 | BK10: 0 | BL10: 0 | BM10: 0 | BN10: 0 | BO10: -5330 | BP10: -6097765.22 | BQ10: 0 | BR10: 0 | BS10: 0 | BT10: 0 | BU10: 0 | BV10: 0 | BW10: 0 | BX10: 14477.22 | BY10: -14477.22
A11: 4622 | B11: Judd School, The | C11: 1501 | D11: 0 | E11: 0 | F11: 6357250.82 | G11: 0 | H11: 1290495.45 | I11: 501619.24 | J11: 550266.57 | K11: 0 | L11: 0 | M11: 63612.19 | N11: 35643.16 | O11: 1921.56 | P11: 0 | Q11: 89207.17 | R11: 41166.06 | S11: 26029.64 | T11: 30909.78 | U11: 272257.51 | V11: 64287 | W11: 22590.06 | X11: 1322990.69 | Y11: 13364.93 | AA11: 5898.59 | AB11: 48472.96 | AC11: 1855.22 | AD11: 5444.22 | AF11: 252005.49 | AG11: 93693.29 | AH11: 55727.06 | AI11: 0 | AJ11: 51744.35 | AK11: 72874.21 | AL11: 0 | AM11: 90227.14 | AO11: 4164.03 | AP11: 0 | AQ11: 0 | AR11: 0 | AS11: -5854088.046 | AT11: -500154.1439 | AU11: -320388 | AV11: 0 | AW11: -3141600 | AX11: 0 | AY11: -33244 | AZ11: -12750.86 | BA11: -1620 | BB11: -47713.18 | BC11: -527799.81 | BD11: -25000 | BE11: 0 | BF11: 0 | BG11: 0 | BH11: -625487.83 | BI11: 0 | BJ11: 0 | BK11: 0 | BL11: 0 | BM11: 0 | BN11: 0 | BO11: -7651.36 | BP11: -6674630.19 | BQ11: 0 | BR11: 189054.67 | BS11: 9333.33 | BT11: 122000 | BU11: 0 | BV11: -320388 | BW11: 0 | BX11: 0 | BY11: 0
A12: 5407 | B12: Thamesview School | C12: 926 | D12: 0 | E12: 0 | F12: 4046021.68 | G12: 0 | H12: 1323436.4 | I12: 44417.02 | J12: 415082.02 | K12: 0 | L12: 85784.67 | M12: 56260.6 | N12: 24476.23 | O12: 1754.73 | P12: 35891.04 | Q12: 19131.19816 | R12: 3350.7266 | S12: 181.55 | T12: 1507.073968 | U12: 22349.73 | V12: 48594 | W12: 9499.74 | X12: 274003.51 | Y12: 6195.36 | AA12: 16263.14 | AB12: 45179.21 | AC12: 963.16 | AD12: 32217.16 | AE12: 10751.75 | AF12: 116442.68 | AG12: 29263.05 | AH12: 5497.334983 | AI12: 0 | AJ12: 78132.92 | AK12: 220515.8 | AL12: 144061.92 | AM12: 150143.0663 | AN12: 0 | AO12: 0 | AP12: 0 | AQ12: 0 | AR12: 0 | AS12: -6695041.557 | AT12: -1220120.343 | AU12: -132563.71 | AV12: -107710.91 | AW12: -341104 | AX12: -9000 | AY12: -438015 | AZ12: -18513.86 | BA12: -102930.75 | BB12: -1391.29 | BD12: 0 | BE12: 0 | BF12: -48617.34 | BG12: -1390 | BH12: 0 | BI12: 0 | BJ12: 0 | BK12: 0 | BL12: 0 | BM12: 0 | BN12: 0 | BO12: -54438.75 | BP12: -8155436.52 | BQ12: 0 | BR12: 66563.71 | BS12: 12000 | BT12: 54000 | BU12: 0 | BV12: -132563.71 | BW12: 0 | BX12: 107710.91 | BY12: -107710.91
A13: 5412 | B13: Simon Langton Grammar School for Boys | C13: 1242 | D13: 0 | E13: 0 | F13: 5607244.5 | G13: 0 | H13: 974897.19 | I13: 315091.9 | J13: 364594.57 | K13: 219945.33 | L13: 54149.24 | M13: 18893.65 | N13: 20198.75 | O13: 1601.97 | P13: 34705.32 | Q13: 98005.27 | R13: 51964.15 | S13: 10898.57 | T13: 78874.29 | U13: 186509.13 | V13: 32256 | W13: 48779.02 | X13: 642387.07 | Y13: 20516.56 | Z13: 2337 | AA13: 11805.34 | AB13: 75838.92 | AC13: 78633 | AD13: 37950.05 | AE13: 60653.37 | AF13: 191277.55 | AG13: 83404.36 | AH13: 38472.24 | AI13: 46000 | AJ13: 244267.52 | AK13: 20990.11 | AL13: 28534.65 | AM13: 66971.31 | AO13: 54496.11 | AP13: 66185.18 | AQ13: 0 | AR13: 0 | AS13: -4817148.725 | AT13: -435192.9448 | AU13: -564580.78 | AV13: -34706.32 | AW13: -2550279 | AX13: 0 | AY13: -59160 | AZ13: -4399.5 | BA13: -129827.11 | BB13: -130517.96 | BC13: -175575.72 | BD13: -395294.95 | BE13: 0 | BF13: 0 | BG13: -439952.49 | BH13: -500 | BI13: 0 | BJ13: 0 | BK13: 0 | BL13: 0 | BM13: 0 | BN13: 0 | BO13: -10597.92 | BP13: -5851628.77 | BQ13: 15000 | BR13: 339580.78 | BS13: 0 | BT13: 210000 | BU13: 0 | BV13: -564580.78 | BW13: 0 | BX13: 34706.32 | BY13: -34706.32
A14: 5425 | B14: Malling School, The | C14: 1061 | D14: 24.3 | E14: 20 | F14: 5792050.23 | G14: 2000 | H14: 1349118.09 | I14: 0 | J14: 478251.63 | K14: 0 | L14: 34471.14 | M14: 30709.35 | N14: 23204.9 | O14: 1821.06 | P14: 37834.74 | Q14: 6919.742503 | R14: 2824.296926 | S14: 0 | T14: 606.3889398 | U14: 0 | V14: 63336 | W14: 7670.23 | X14: 364349.17 | Y14: 8227.34 | AA14: 32537.92 | AB14: 70671.63 | AC14: 55172.24 | AD14: 20837.42 | AF14: 94980.68 | AG14: 71779.86 | AH14: 3344.665343 | AI14: 99631.70245 | AJ14: 12932.9 | AK14: 18600 | AL14: 267908.74 | AM14: 6888.40384 | AN14: 0 | AO14: 8308.99 | AP14: 333275.12 | AQ14: 0 | AR14: 0 | AS14: -6493654.759 | AT14: -1036903.271 | AU14: -1394747.99 | AV14: -176074.71 | AW14: -952615 | AX14: 0 | AY14: -271484.98 | AZ14: -118291.27 | BA14: -88982.91 | BB14: -50600.04 | BC14: -21990.22 | BD14: 0 | BE14: 0 | BF14: -38158.68 | BG14: -33031.32 | BH14: -20389.96 | BI14: 0 | BJ14: 0 | BK14: 0 | BL14: 0 | BM14: 0 | BN14: 0 | BO14: -55726.77 | BP14: -9101380.73 | BQ14: 15000 | BR14: 647747.99 | BS14: 12000 | BT14: 600000 | BU14: 120000 | BV14: -1394747.99 | BW14: 0 | BX14: 176074.71 | BY14: -176074.71
A15: 5426 | B15: Archbishop's School, The | C15: 710 | D15: 1.3 | E15: 0 | F15: 3602714 | G15: 7681.04 | H15: 856028.99 | I15: 252573.12 | J15: 418196.64 | K15: 68891.1 | L15: 30313.38 | M15: 26423.16 | N15: 31644.78 | O15: 1228.11 | P15: 25518.24 | Q15: 46506.26 | R15: 9549.7 | S15: 5851.9 | T15: 13005.63 | U15: 126300.75 | V15: 25552.8 | W15: 30259.05 | X15: 195887 | Y15: 16810 | AA15: 14093.23 | AB15: 28294.31 | AC15: 13973.29 | AD15: 11852.89 | AE15: 8974.74 | AF15: 108759.69 | AG15: 27945.09 | AH15: 19835.63 | AI15: 2454.98 | AJ15: 128321.44 | AK15: 314803.28 | AL15: 392184.11 | AM15: 57134.59 | AO15: 268.95 | AP15: 14266.4 | AQ15: 0 | AR15: 0 | AS15: -4432519.363 | AT15: -1026311.967 | AU15: -51817.93 | AV15: -84732.55 | AW15: -508793 | AX15: -27000 | AY15: -371509.94 | AZ15: -9713.36 | BA15: -256630.74 | BB15: -17264 | BC15: -6419.08 | BD15: -63953.71 | BE15: 0 | BF15: -8608.32 | BG15: -20317.45 | BH15: -17128.83 | BI15: 0 | BJ15: 0 | BK15: 0 | BL15: 0 | BM15: 0 | BN15: 0 | BO15: -25124.86 | BP15: -5595381.81 | BQ15: 0 | BR15: 1817.93 | BS15: 8000 | BT15: 42000 | BU15: 0 | BV15: -51817.93 | BW15: 0 | BX15: 84732.55 | BY15: -84732.55
A16: 5447 | B16: St George's CE Foundation School | C16: 1630 | D16: 0 | E16: 0 | F16: 6715953.42 | G16: 0 | H16: 1533660.21 | I16: 485049.28 | J16: 753463.3 | K16: 213918.62 | L16: 65600 | M16: 41837.6 | N16: 23695.82 | O16: 3019.02 | P16: 225 | Q16: 122728.32 | R16: 18456.21 | S16: 30921.61 | T16: 25382.09 | U16: 224060.48 | V16: 92672 | W16: 43641.61 | X16: 400822.01 | Y16: 28485.8 | Z16: 575.17 | AA16: 34286.37 | AB16: 48249.42 | AC16: 53681.89 | AD16: 27036.15 | AE16: 25590.86 | AF16: 166796.65 | AG16: 64574.62 | AH16: 57766.51 | AI16: 0 | AJ16: 215482.76 | AK16: 167441.01 | AL16: 242708.16 | AM16: 73194.84 | AO16: 0 | AP16: 171971.31 | AQ16: 0 | AR16: 0 | AS16: -8242128 | AT16: -1719788.9 | AU16: 0 | AV16: -176888.15 | AW16: -803103 | AX16: 0 | AY16: -692705.05 | AZ16: -9370.29 | BA16: -109187 | BB16: -44946 | BC16: -96217.5 | BD16: -185298.98 | BE16: 0 | BF16: 0 | BG16: -32460.27 | BH16: -35 | BI16: 0 | BJ16: 0 | BK16: 0 | BL16: -82583 | BM16: 0 | BN16: 0 | BO16: -56913.05 | BP16: -10138805.05 | BQ16: 0 | BR16: 0 | BS16: 0 | BT16: 0 | BU16: 0 | BV16: 0 | BW16: 0 | BX16: 176888.15 | BY16: -176888.15
A17: 5456 | B17: Northfleet Technology College | C17: 946 | D17: 0 | E17: 0 | F17: 4657939.54 | G17: 21228.61 | H17: 1046815.83 | I17: 0 | J17: 400072.05 | K17: 0 | L17: 0 | M17: 63732.48 | N17: 36692.17 | O17: 1557.75 | P17: 32525.64 | Q17: 5192.761264 | R17: 1246.449893 | S17: 164102.91 | T17: 708.2949293 | U17: 178005.88 | V17: 48321 | W17: 12560.46 | X17: 196937.34 | Y17: 9284.84 | AA17: 26765.92 | AB17: 56177.25 | AC17: 5501.4 | AD17: 17443.61 | AE17: 3000 | AF17: 146288.77 | AG17: 15750.58 | AH17: 1037.366478 | AI17: 53799.77872 | AJ17: 125957.88 | AK17: 59602.36 | AL17: 145898.15 | AM17: 546.098713 | AN17: 0 | AO17: 0 | AP17: 69063.3 | AQ17: 0 | AR17: 0 | AS17: -5957799.807 | AT17: -996277.0132 | AU17: 0 | AV17: -51801.08 | AW17: -1047227 | AX17: -4500 | AY17: -298170 | AZ17: -13142.57 | BA17: -85182.27 | BB17: 0 | BC17: -34997.95 | BD17: 0 | BE17: 0 | BF17: -25842.32 | BG17: 0 | BH17: 0 | BI17: 0 | BJ17: 0 | BK17: 0 | BL17: 0 | BM17: 0 | BN17: 0 | BO17: -36436.88 | BP17: -7005877.9 | BQ17: 0 | BR17: 0 | BS17: 0 | BT17: 0 | BU17: 0 | BV17: 0 | BW17: 0 | BX17: 51801.08 | BY17: -51801.08
A18: 5459 | B18: Dover Grammar School for Boys | C18: 867 | D18: 0 | E18: 0 | F18: 3873402 | G18: 8514.82 | H18: 494206.52 | I18: 220412.75 | J18: 309087.27 | K18: 0 | L18: 0 | M18: 2728.69 | N18: 10660.69 | O18: 1372.83 | P18: 29128.68 | Q18: 90681.94 | R18: 20961.32 | S18: 6696.91 | T18: 12974.69 | U18: 50266.19 | V18: 53781 | W18: 14943.39 | X18: 237220.62 | Y18: 21015.54 | AA18: 7329.35 | AB18: 28023.41 | AC18: 37311.56 | AD18: 9135.67 | AE18: 12650 | AF18: 107239.77 | AG18: 62931.28 | AH18: 24344.2 | AI18: 7788.88 | AJ18: 64921.67 | AK18: 8170.2 | AL18: 65347.12 | AM18: 89498.89 | AO18: 0 | AP18: 61080.12 | AQ18: 0 | AR18: 0 | AS18: -4016012.904 | AT18: -463296.0263 | AU18: 0 | AV18: -35833.17 | AW18: -977970 | AX18: 0 | AY18: -156739 | AZ18: -2913.86 | BA18: -3685.19 | BB18: -16224.17 | BC18: -119452.8 | BD18: -913.18 | BE18: 0 | BF18: -4250 | BG18: -99908.93 | BH18: -8677.04 | BI18: 0 | BJ18: 0 | BK18: 0 | BL18: 0 | BM18: 0 | BN18: 0 | BO18: -16372.5 | BP18: -4515142.1 | BQ18: 0 | BR18: 0 | BS18: 0 | BT18: 0 | BU18: 0 | BV18: 0 | BW18: 0 | BX18: 35833.17 | BY18: -35833.17
A19: 5461 | B19: St John's RC Comprehensive School | C19: 1321 | D19: 0 | E19: 0 | F19: 6301760.13 | G19: 0 | H19: 1003533.02 | I19: 0 | J19: 288745.51 | K19: 0 | L19: 92985.61 | M19: 47273.39 | N19: 24005.44 | O19: 1991.91 | P19: 46461.05 | Q19: 4847.984006 | R19: 972.4917014 | S19: 0 | T19: 611.1935565 | U19: 0 | V19: 73167.91 | W19: 16677.43 | X19: 173213.03 | Y19: 12979.17 | Z19: 1790 | AA19: 38937.02 | AB19: 66089.55 | AC19: 32546.14 | AD19: 6672.14 | AE19: 19342.47 | AF19: 218579.79 | AG19: 70226.35 | AH19: 2226.714612 | AI19: 51153.97705 | AJ19: 19418.99 | AK19: 122817.3 | AL19: 80046.99 | AM19: 1773.729077 | AN19: 0 | AO19: 0 | AP19: 4425 | AQ19: 0 | AR19: 0 | AS19: -7394128.169 | AT19: -1111800.471 | AU19: 0 | AV19: -71477.76 | AW19: -2008389 | AX19: 0 | AY19: -278730 | AZ19: -23303.92 | BA19: -88762.09 | BB19: -1462.44 | BC19: -10474.19 | BD19: 0 | BE19: 0 | BF19: -20183.43 | BG19: 0 | BH19: 0 | BI19: 0 | BJ19: 0 | BK19: 0 | BL19: 0 | BM19: 0 | BN19: 0 | BO19: -34363.75 | BP19: -8577406.4 | BQ19: 0 | BR19: 0 | BS19: 0 | BT19: 0 | BU19: 0 | BV19: 0 | BW19: 0 | BX19: 71477.76 | BY19: -71477.76
C21: 6 | F21: E01 | G21: E02 | H21: E03 | I21: E04 | J21: E05 | K21: E06 | L21: E07 | M21: E08 | N21: E09 | O21: E10 | P21: E11 | Q21: E12 | R21: E13 | S21: E14 | T21: E15 | U21: E16 | V21: E17 | W21: E18 | X21: E19 | AE21: E20 | AF21: E21 | AG21: E22 | AH21: E23 | AI21: E24 | AJ21: E25 | AK21: E26 | AL21: E27 | AM21: E28 | AN21: E28B | AO21: E29 | AP21: E30 | AQ21: E31 | AR21: E32 | AS21: =IF(ISERROR(SUM('2024-25 Data'!AS$3:AS$19)/SUM('2024-25 Data'!$C$3:$D$19)),"",SUM('2024-25 Data'!AS$3:AS$19)/SUM('2024-25 Data'!$C$3:$D$19)) -> -5000.543787 | AT21: -347.207897 | AW21: I02 | AX21: I04 | AY21: I05 | AZ21: I06 | BA21: I07 | BB21: I08 | BC21: I08b | BD21: I09 | BE21: I10 | BF21: I11 | BG21: I12 | BH21: I13 | BI21: I15 | BJ21: I16 | BK21: I17 | BL21: I18 | BM21: I18A | BN21: I18B | BO21: I18C | BP21: I01 | BQ21: I03
C22: 7 | F22: 35 | G22: 36 | H22: 37 | I22: 38 | J22: 39 | K22: 40 | L22: 41 | M22: 42 | N22: 43 | O22: 44 | P22: 45 | Q22: 46 | R22: 47 | S22: 48 | T22: 49 | U22: 50 | V22: 51 | W22: 52 | X22: 53 | AE22: 54 | AF22: 55 | AG22: 56 | AH22: 57 | AI22: 58 | AJ22: 59 | AK22: 60 | AL22: 61 | AM22: 62 | AN22: 63 | AO22: 64 | AP22: 65 | AQ22: 66 | AR22: 67 | AW22: 73 | AX22: 75 | AY22: 76 | AZ22: 77 | BA22: 78 | BB22: 79 | BC22: 80 | BD22: 81 | BE22: 82 | BF22: 83 | BG22: 84 | BH22: 85 | BI22: 87 | BJ22: 88 | BK22: 89 | BL22: 90 | BM22: 91 | BN22: 92 | BO22: 93 | BP22: 74 | BQ22: 74
B24: PFI Breakdown | Q24: E12 | R24: E13 | T24: E15 | AH24: E23 | AI24: E24 | AM24: E28 | AN24: E28B
A25: 5407 | B25: Thamesview School | Q25: ='PFI Adjustments'!D16 -> 51976.77816 | R25: ='PFI Adjustments'!E16 -> 3350.7266 | T25: ='PFI Adjustments'!F16 -> 1507.073968 | AH25: ='PFI Adjustments'!G16 -> 31030.80498 | AI25: ='PFI Adjustments'!H16 -> 8068.58 | AM25: ='PFI Adjustments'!I16 -> 263324.8363 | AN25: 0
A26: 5425 | B26: The Malling School | Q26: ='PFI Adjustments'!D17 -> 7242.722503 | R26: ='PFI Adjustments'!E17 -> 17109.29693 | T26: ='PFI Adjustments'!F17 -> 606.3889398 | AH26: ='PFI Adjustments'!G17 -> 31222.36534 | AI26: ='PFI Adjustments'!H17 -> 99800.58245 | AM26: ='PFI Adjustments'!I17 -> 84449.04384 | AN26: 0
A27: 5431 | B27: Hugh Christie Technology College | Q27: ='PFI Adjustments'!D18 -> 29937.0533 | R27: ='PFI Adjustments'!E18 -> 12236.53842 | T27: ='PFI Adjustments'!F18 -> 4691.471894 | AH27: ='PFI Adjustments'!G18 -> 11725.29712 | AI27: ='PFI Adjustments'!H18 -> 712863.8747 | AM27: ='PFI Adjustments'!I18 -> 8990.724529 | AN27: 0
A28: 5456 | B28: Northfleet Technology College | Q28: ='PFI Adjustments'!D19 -> 8136.951264 | R28: ='PFI Adjustments'!E19 -> 1246.449893 | T28: ='PFI Adjustments'!F19 -> 896.4349293 | AH28: ='PFI Adjustments'!G19 -> 25676.91648 | AI28: ='PFI Adjustments'!H19 -> 53799.77872 | AM28: ='PFI Adjustments'!I19 -> 35304.96871 | AN28: 0
A29: 5461 | B29: St Johns RC Comprehensive School | Q29: ='PFI Adjustments'!D20 -> 5034.914006 | R29: ='PFI Adjustments'!E20 -> 972.4917014 | T29: ='PFI Adjustments'!F20 -> 611.1935565 | AH29: ='PFI Adjustments'!G20 -> 35659.74461 | AI29: ='PFI Adjustments'!H20 -> 51153.97705 | AM29: ='PFI Adjustments'!I20 -> 29739.85908 | AN29: 0

Sheet PFI Adjustments (hidden)
A1: PFI Breakdown | D1: E12 | E1: E13 | F1: E15 | G1: E23 | H1: E24 | I1: E28
A2: 5407 | B2: Thamesview School | D2: 32845.58 | E2: 0 | F2: 0 | G2: 25533.47 | H2: 8068.58 | I2: 113181.77
A3: 5425 | B3: The Malling School | D3: 322.98 | E3: 14285 | F3: 0 | G3: 27877.7 | H3: 168.88 | I3: 77560.64
A4: 5431 | B4: Hugh Christie Technology College | D4: 0 | E4: 0 | F4: 0 | G4: 0 | H4: 390222.48 | I4: 0
A5: 5456 | B5: Northfleet Technology College | D5: 2944.19 | E5: 0 | F5: 188.14 | G5: 24639.55 | H5: 0 | I5: 34758.87
A6: 5461 | B6: St Johns RC Comprehensive School | D6: 186.93 | E6: 0 | F6: 0 | G6: 33433.03 | H6: 0 | I6: 27966.13
K8: Standard percentage figures for 2014-15 to 2017-18
A9: PFI Breakdown | C9: ="E28B total from"&CHAR(10)&" 20"&RIGHT(Benchmarking!C1,5)&CHAR(10)&" Checking Spreadsheet" -> E28B total from 2024-25 Checking Spreadsheet | D9: E12 | E9: E13 | F9: E15 | G9: E23 | H9: E24 | I9: E28 | K9: E12 | L9: E13 | M9: E15 | N9: E23 | O9: E24 | P9: E28 | Q9: Comments
A10: 5407 | B10: Thamesview School | C10: 179629.4 | D10: =$C10*K10 -> 19131.19816 | E10: 3350.7266 | F10: 1507.073968 | G10: 5497.334983 | H10: 0 | I10: 150143.0663 | K10: 0.1065037135 | L10: 0.01865355337 | M10: 0.008389907043 | N10: 0.03060375964 | O10: 0 | P10: 0.8358490664 | Q10: Supplied by School
A11: 5425 | B11: The Malling School | C11: 120215.2 | D11: 6919.742503 | E11: 2824.296926 | F11: 606.3889398 | G11: 3344.665343 | H11: 99631.70245 | I11: 6888.40384 | K11: 0.05756129427 | L11: 0.02349367572 | M11: 0.005044195242 | N11: 0.0278223165 | O11: 0.828777912 | P11: 0.05730060625 | Q11: Calculation
A12: 5431 | B12: Hugh Christie Technology College | C12: 390222.48 | D12: 29937.0533 | E12: 12236.53842 | F12: 4691.471894 | G12: 11725.29712 | H12: 322641.3947 | I12: 8990.724529 | K12: 0.07671791052 | L12: 0.03135785109 | M12: 0.01202255671 | N12: 0.03004772333 | O12: 0.826813962 | P12: 0.02303999639 | Q12: Calculation
A13: 5456 | B13: Northfleet Technology College | C13: 62530.75 | D13: 5192.761264 | E13: 1246.449893 | F13: 708.2949293 | G13: 1037.366478 | H13: 53799.77872 | I13: 546.098713 | K13: 0.0830433229 | L13: 0.01993339107 | M13: 0.01132714591 | N13: 0.01658970152 | O13: 0.860373156 | P13: 0.008733282633 | Q13: Supplied by School
A14: 5461 | B14: St Johns RC Comprehensive School | C14: 61586.09 | D14: 4847.984006 | E14: 972.4917014 | F14: 611.1935565 | G14: 2226.714612 | H14: 51153.97705 | I14: 1773.729077 | K14: 0.07871881468 | L14: 0.01579076869 | M14: 0.009924214324 | N14: 0.03615612895 | O14: 0.8306092666 | P14: 0.02880080676 | Q14: Calculation
A16: 5407 | B16: Thamesview School | D16: =D2+D10 -> 51976.77816 | E16: 3350.7266 | F16: 1507.073968 | G16: 31030.80498 | H16: 8068.58 | I16: 263324.8363
A17: 5425 | B17: The Malling School | D17: 7242.722503 | E17: 17109.29693 | F17: 606.3889398 | G17: 31222.36534 | H17: 99800.58245 | I17: 84449.04384
A18: 5431 | B18: Hugh Christie Technology College | D18: 29937.0533 | E18: 12236.53842 | F18: 4691.471894 | G18: 11725.29712 | H18: 712863.8747 | I18: 8990.724529
A19: 5456 | B19: Northfleet Technology College | D19: 8136.951264 | E19: 1246.449893 | F19: 896.4349293 | G19: 25676.91648 | H19: 53799.77872 | I19: 35304.96871
A20: 5461 | B20: St Johns RC Comprehensive School | D20: 5034.914006 | E20: 972.4917014 | F20: 611.1935565 | G20: 35659.74461 | H20: 51153.97705 | I20: 29739.85908
